{"text_format":"1","workbook":"xlsx","n_sheets":15,"sheets":["PORTADA","MENU","FUNDAMENTO","DEPRECIACIONF","DEPRECIACIONA","VENTAAF","TASAD","OTROS","RETENCION","NOMINA","CONCENTRADO","VISORN","CATALOGO","INPC","c_Estado"],"not_rendered":{"charts":0,"images":20,"macros":1,"external_links":0,"defined_names":20,"comments":1,"pivot_tables":0},"unopened":[],"bounds":{"document_bytes":16777216,"sheet_cells":100000,"rows_first":2000,"rows_last":500,"rows_between":2000,"halvings":0,"cell_chars":16384,"cell_head_chars":4096},"cells_cut":0,"cells_raw":0,"read":"whole","date_system":"1900"}

{"sheet":"PORTADA","index":0,"n_rows":198,"n_cols":38,"rows_kept":198,"cut":false,"hidden":false,"merged":[]}
[]
[]
[]
[]
[]
[]
[]
[]
[]
[]
[]
[]
[]
[]
[]
[]
[]
[]
[]
[]
[]
[]
[]
[]
[]
[]
[]
[]
[]
[]
[]
[]
[]
[]
[]
[]
[]
[]
[]
[]
[]
[]
[]
[]
[]
[]
[]
[]
[]
[]
[]
[]
[]
[]
[]
[]
[]
[]
[]
[]
[]
[]
[null,null,null,"Range(C12)"]
[]
[]
[]
[]
[]
[]
[]
[]
[]
[null,null,null,null,null,258963214]
[]
[]
[]
[]
[]
[]
[]
[]
[]
[]
[]
[]
[]
[]
[]
[]
[]
[]
[]
[]
[]
[]
[]
[]
[]
[]
[]
[]
[]
[]
[]
[]
[]
[]
[]
[]
[]
[null,null,null,null,null,null,null,null,null,null,null,null,null,null,null,null,null,null,null,null,null,null,null,null,null,null,null,null,null,null,null,null,null,null,null,null,null,"Len@range(a2)"]
[]
[]
[]
[]
[]
[]
[]
[]
[]
[]
[]
[]
[]
[]
[]
[]
[]
[]
[]
[]
[]
[]
[]
[]
[]
[]
[]
[]
[]
[]
[]
[]
[]
[]
[]
[]
[]
[]
[]
[]
[]
[]
[]
[]
[]
[]
[]
[]
[]
[]
[]
[]
[]
[]
[]
[]
[]
[]
[]
[]
[]
[]
[]
[]
[]
[]
[]
[]
[]
[]
[]
[]
[]
[]
[]
[]
[]
[]
[]
[]
[]
[]
[]
[]
[]
[]
[null,null,null,null,null,null,null,null,null,null,"Len@25"]

{"sheet":"MENU","index":1,"n_rows":16,"n_cols":3,"rows_kept":16,"cut":false,"hidden":true,"merged":[[1,1,2,2]]}
[]
[]
[]
[]
[null,"Descripción","Nombre de la hoja"]
[null,"Fundamentos legales","FUNDAMENTO"]
[null,"Depreciación fiscal","DEPRECIACIONF"]
[null,"Depreciación fiscal en arrendamiento financiero","DEPRECIACIONA"]
[null,"Venta de activo fijo","VENTAAF"]
[null,"Tasas de depreciación fiscal","TASAD"]
[null,"Otros fundamentos","OTROS"]
[null,"Retenciones de ISR e IVA","RETENCION"]
[null,"Importación de archivos XML de nómina","NOMINA"]
[null,"Concentrado de XML de nómina","CONCENTRADO"]
[null,"Visor de XML de nómina","VISORN"]
[null,"Tabla INPC","INPC"]

{"sheet":"FUNDAMENTO","index":2,"n_rows":16,"n_cols":3,"rows_kept":16,"cut":false,"hidden":true,"merged":[[14,1,14,2],[15,1,15,2]]}
[]
[]
[]
[]
[null,"Disposición","Fundamento"]
[null,"En el caso de las devoluciones, descuentos o bonificaciones a que se refiere el artículo 25 de la Ley del Impuesto sobre la Renta, se deberán expedir comprobantes fiscales digitales por Internet. En el supuesto de que se emitan comprobantes que amparen egresos sin contar con la justificación y soporte documental que acredite las devoluciones, descuentos o bonificaciones ante las autoridades fiscales, éstos no podrán disminuirse de los comprobantes fiscales de ingresos del contribuyente, lo cual podrá ser verificado por éstas en el ejercicio de las facultades establecidas en este Código.","Artículo 29 fracción VI tercer párrafo CFF"]
[null,"Las reparaciones, así como las adaptaciones a las instalaciones se considerarán inversiones siempre que impliquen adiciones o mejoras al activo fijo.\n\nEn ningún caso se considerarán inversiones los gastos por concepto de conservación, mantenimiento y reparación, que se eroguen con el objeto de mantener el bien de que se trate en condiciones de operación.","Artículo 36 fracción I LISR"]
[null,"Las inversiones en automóviles sólo serán deducibles hasta por un monto de $175,000.00. Tratándose de inversiones realizadas en automóviles cuya propulsión sea a través de baterías eléctricas recargables, así como los automóviles eléctricos que además cuenten con motor de combustión interna o con motor accionado por hidrógeno, sólo serán deducibles hasta por un monto de $250,000.00.\n\nLo dispuesto en esta fracción no será aplicable tratándose de contribuyentes cuya actividad consista en el otorgamiento del uso o goce temporal de automóviles, siempre y cuando los destinen exclusivamente a dicha actividad.","Artículo 36 fracción II LISR"]
[null,"Los contribuyentes a que se refiere esta Sección determinarán la deducción por inversiones aplicando lo dispuesto en la Sección II del Capítulo II del Título II de esta Ley. Para estos efectos, se consideran inversiones las señaladas en el artículo 32 de esta Ley.\n\nPara los efectos de este artículo, los por cientos de deducción se aplicarán sobre el monto original de la inversión, aun cuando ésta no se haya pagado en su totalidad en el ejercicio en que proceda su deducción. Cuando no se pueda separar el monto original de la inversión de los intereses que en su caso se paguen por el financiamiento, el por ciento que corresponda se aplicará sobre el monto total, en cuyo caso, los intereses no podrán deducirse en los términos de la fracción V del artículo 103 de esta Ley.","Artículo 104 LISR"]
[null,"Activo fijo es el conjunto de bienes tangibles que utilicen los contribuyentes para la realización de sus actividades y que se demeriten por el uso en el servicio del contribuyente y por el transcurso del tiempo. La adquisición o fabricación de estos bienes tendrá siempre como finalidad la utilización de los mismos para el desarrollo de las actividades del contribuyente, y no la de ser enajenados dentro del curso normal de sus operaciones.","Artículo 32 segundo párrafo LISR"]
[null,"Para efectos de esta Ley, la adquisición del derecho de usufructo sobre un bien inmueble se considerará activo fijo.","Artículo 32 tercer párrafo LISR"]
[null,"Gastos diferidos son los activos intangibles representados por bienes o derechos que permitan reducir costos de operación, mejorar la calidad o aceptación de un producto, usar, disfrutar o explotar un bien, por un periodo limitado, inferior a la duración de la actividad de la persona moral. También se consideran gastos diferidos los activos intangibles que permitan la explotación de bienes del dominio público o la prestación de un servicio público concesionado.","Artículo 32 cuarto párrafo LISR"]
[null,"Cargos diferidos son aquéllos que reúnan los requisitos señalados en el párrafo anterior, excepto los relativos a la explotación de bienes del dominio público o a la prestación de un servicio público concesionado, pero cuyo beneficio sea por un periodo ilimitado que dependerá de la duración de la actividad de la persona moral.","Artículo 32 quinto párrafo LISR"]
[null,"Erogaciones realizadas en periodos preoperativos, son aquéllas que tienen por objeto la investigación y el desarrollo, relacionados con el diseño, elaboración, mejoramiento, empaque o distribución de un producto, así como con la prestación de un servicio, siempre que las erogaciones se efectúen antes de que el contribuyente enajene sus productos o preste sus servicios, en forma constante. Tratándose de industrias extractivas, estas erogaciones son las relacionadas con la exploración para la localización y cuantificación de nuevos yacimientos susceptibles de explotarse. No se considerarán erogaciones en periodo preoperativo las correspondientes a activos intangibles que permitan la exploración o explotación de bienes del dominio público, las cuales tendrán el tratamiento de gasto diferido.","Artículo 32 sexto párrafo LISR"]
[null,"Pagos en efectivo de sueldos\nArtículo 43. Para efectos del artículo 27, fracción III de la Ley, las erogaciones efectuadas por salarios y en general por la prestación de un servicio personal subordinado a que se refiere el artículo 94 de la Ley, pagadas en efectivo podrán ser deducibles, siempre que además de cumplir con todos los requisitos que señalan las disposiciones fiscales para la deducibilidad de dicho concepto, se cumpla con la obligación inherente a la emisión del comprobante fiscal correspondiente por concepto de nómina. \n\nRequisitos de deducciones que se extingan con la entrega de dinero\n3.3.1.3.\tPara los efectos del artículo 27, fracción III de la Ley del ISR, se considera que el requisito de deducibilidad consistente en que los pagos cuyo monto exceda de $2,000.00 (dos mil pesos 00/100 M.N.), se efectúen mediante cheque nominativo del contribuyente, tarjeta de crédito, de débito o de servicios, o a través de monederos electrónicos autorizados por el SAT, solo es aplicable a las obligaciones que se cumplan o se extingan con la entrega de una cantidad en dinero, por lo que están exceptuados aquellos casos en los cuales el interés del acreedor queda satisfecho mediante cualquier otra forma de extinción de las obligaciones que den lugar a las contraprestaciones.\n\tLISR 27"]
[null,"Deducción de combustibles para vehículos marítimos, aéreos y terrestres, adquiridos a través de monederos electrónicos autorizados por el SAT\n3.3.1.7.\tPara los efectos del artículo 27, fracción III, primer y segundo párrafos de la Ley del ISR, las personas físicas y morales que adquieran combustibles para vehículos marítimos, aéreos y terrestres, a través de los monederos electrónicos que al efecto autorice el SAT, podrán comprobar la erogación de las comisiones y otros cargos que cobre el emisor del monedero electrónico por sus servicios, así como el pago por la adquisición de combustibles, con el CFDI y el complemento de estado de cuenta de combustibles para monederos electrónicos autorizados por el SAT, respectivamente, que expidan los emisores autorizados en términos de la regla 3.3.1.10., fracción III, por lo que las estaciones de servicio no deberán emitir el CFDI a los clientes adquirentes de combustibles, por las operaciones que se realicen a través de monederos electrónicos autorizados por el SAT.\n\n\tLa deducción por la adquisición de combustibles, así como el acreditamiento de los impuestos trasladados podrá realizarse hasta que el contribuyente adquirente del combustible, cuente con el CFDI y el complemento a que se refiere el párrafo anterior y hasta por el monto que ampare el citado complemento.\n\n\tLo dispuesto en esta regla no exime a la estación de servicio enajenante, de cumplir con la obligación de expedir CFDI por las operaciones realizadas con los monederos electrónicos de combustibles, para lo cual, deberá emitir con la misma periodicidad con la que recibe del emisor autorizado de monederos electrónicos el CFDI de egresos con el complemento de consumo de combustibles a que refiere la regla 3.3.1.10., fracción IV, un CFDI en términos de la regla 2.7.1.21., en donde conste por tipo de combustible, el total de litros enajenados a través de los monederos electrónicos autorizados, el precio unitario, los impuestos trasladados y el importe total, así como, incluir en el campo “Atributo Descripción del Elemento Concepto” la clave de la estación de servicio enajenante, el número de folio del CFDI de egresos antes mencionado y la clave en el RFC del emisor autorizado que lo emite.\n\n\tLos importes contenidos en el CFDI que emita la estación de servicio enajenante, en términos del párrafo anterior, deberán coincidir con el importe del CFDI de egresos y el complemento de consumo de combustibles a que refiere la regla 3.3.1.10., fracción IV.\n\tCFF 29, LISR 27, RMF 2023 2.7.1.21., 3.3.1.10."]

{"sheet":"DEPRECIACIONF","index":3,"n_rows":90,"n_cols":4,"rows_kept":90,"cut":false,"hidden":true,"merged":[[25,1,25,7],[4,1,4,7],[54,1,54,7]]}
[]
[]
[null,"Determinación de la depreciación fiscal"]
[]
[null,"El monto original de la inversión comprende, además del precio del bien, los impuestos efectivamente pagados con motivo de la adquisición o importación del mismo a excepción del impuesto al valor agregado, así como las erogaciones por concepto de derechos, cuotas compensatorias, preparación del emplazamiento físico, instalación, montaje, manejo, entrega, fletes, transportes, acarreos, seguros contra riesgos en la transportación, manejo, comisiones sobre compras y honorarios a agentes o agencias aduanales, así como los relativos a los servicios contratados para que la inversión funcione. Tratándose de las inversiones en automóviles el monto original de la inversión también incluye el monto de las inversiones en equipo de blindaje.\nFundamento: Artículo 31 segundo párrafo LISR"]
[]
[null,"Precio del bien"]
[null,"(+) Impuestos efectivamente pagados (excepto el IVA)"]
[null,"(+) Pago de derechos"]
[null,"(+) Cuotas compensatorias"]
[null,"(+) Preparación del emplazamiento físico"]
[null,"(+) Instalación"]
[null,"(+) Montaje"]
[null,"(+) Manejo"]
[null,"(+) Entrega"]
[null,"(+) Fletes"]
[null,"(+) Transportes"]
[null,"(+) Acareos"]
[null,"(+) Seguro contra riesgos de la transportación"]
[null,"(+) Comisiones sobre compras"]
[null,"(+) Honorarios a agentes o agencias aduanales"]
[null,"(+) Servicios contratados para que la inversión funcione"]
[null,"(+) Equipo de blindaje en caso de automóviles"]
[null,"(=) Monto original de la inversión",{"$f":"SUM(C7:C23)","v":0}]
[]
[null,"Las inversiones únicamente se podrán deducir mediante la aplicación, en cada ejercicio, de los por cientos máximos autorizados por esta Ley, sobre el monto original de la inversión, con las limitaciones en deducciones que, en su caso, establezca esta Ley. Tratándose de ejercicios irregulares, la deducción correspondiente se efectuará en el por ciento que represente el número de meses completos del ejercicio en los que el bien haya sido utilizado por el contribuyente, respecto de doce meses. Cuando el bien se comience a utilizar después de iniciado el ejercicio y en el que se termine su deducción, ésta se efectuará con las mismas reglas que se aplican para los ejercicios irregulares.\nFundamento: Artículo 31 primer párrafo LISR"]
[]
[null,"Fecha de adquisición","2023-05-19"]
[null,"Fecha de cálculo","2024-08-29"]
[]
[null,"Precio del bien",158900]
[null,"(+) Impuestos efectivamente pagados (excepto el IVA)"]
[null,"(+) Pago de derechos"]
[null,"(+) Cuotas compensatorias"]
[null,"(+) Preparación del emplazamiento físico"]
[null,"(+) Instalación"]
[null,"(+) Montaje"]
[null,"(+) Manejo"]
[null,"(+) Entrega"]
[null,"(+) Fletes"]
[null,"(+) Transportes"]
[null,"(+) Acareos"]
[null,"(+) Seguro contra riesgos de la transportación"]
[null,"(+) Comisiones sobre compras"]
[null,"(+) Honorarios a agentes o agencias aduanales"]
[null,"(+) Servicios contratados para que la inversión funcione"]
[null,"(+) Equipo de blindaje en caso de automóviles"]
[null,"(=) Monto original de la inversión",{"$f":"SUM(C31:C47)","v":158900}]
[null,"(x) Tasa de depreciación",0.1,{"$f":"IFERROR(IF(C49>0,HYPERLINK(\"#TASAD!B67\",\"% Menores\"),\"\"),\"\")","v":"% Menores"}]
[null,"(=) Depreciación fiscal",{"$f":"IFERROR(ROUND(C48*C49,2),0)","v":15890}]
[null,"(/) Meses del ejercicio",12]
[null,"(x) Meses completos de utilización",{"$f":"IFERROR(IF(YEAR(C28)<YEAR(C29),DATEDIF(DATE(YEAR(C29),1,1),C29,\"ym\")+1,IF(DAY(C28)>1,DATEDIF(DATE(YEAR(C28),MONTH(EOMONTH(C28,1)),1),C29,\"ym\"),DATEDIF(C28,C29,\"ym\")+1)),\"\")","v":8}]
[null,"(=) Depreciación fiscal proporcional",{"$f":"IFERROR(ROUND(C50/C51*C52,2),0)","v":10593.33}]
[]
[null,"Los contribuyentes ajustarán la deducción determinada en los términos de los párrafos primero y sexto de este artículo, multiplicándola por el factor de actualización correspondiente al periodo comprendido desde el mes en el que se adquirió el bien y hasta el último mes de la primera mitad del periodo en el que el bien haya sido utilizado durante el ejercicio por el que se efectúe la deducción.\nFundamento: Artículo 31 séptimo párrafo LISR\n\nCuando sea impar el número de meses comprendidos en el periodo en el que el bien haya sido utilizado en el ejercicio, se considerará como último mes de la primera mitad de dicho periodo el mes inmediato anterior al que corresponda la mitad del periodo.\nFundamento: Artículo 31 octavo párrafo LISR"]
[]
[null,"Determinación del factor de actualización"]
[null,{"$f":"\"INPC Último mes de la primera mitadad de utilización en el ejercicio (\"&IFERROR(IF(YEAR(C28)<YEAR(C29),PROPER(TEXT(DATE(YEAR(C29),DATEDIF(DATE(YEAR(C29),1,1),EOMONTH(C29,1),\"M\")/2,1),\"MMMM\")),PROPER(TEXT(DATE(YEAR(C28),MONTH(C29)-(ROUND(DATEDIF(C28,EOMONTH(C29,1),\"M\")-(DATEDIF(C28,EOMONTH(C29,1),\"M\")/2),0)),1),\"MMMM\"))),\"\")&\" \"&IF(IFERROR(IF(YEAR(C28)<YEAR(C29),PROPER(TEXT(DATE(YEAR(C29),DATEDIF(DATE(YEAR(C29),1,1),EOMONTH(C29,1),\"M\")/2,1),\"MMMM\")),PROPER(TEXT(DATE(YEAR(C28),MONTH(C29)-(ROUND(DATEDIF(C28,EOMONTH(C29,1),\"M\")-(DATEDIF(C28,EOMONTH(C29,1),\"M\")/2),0)),1),\"MMMM\"))),\"\")=\"Diciembre\",YEAR(C29)-1,YEAR(C29))&\")\"","v":"INPC Último mes de la primera mitadad de utilización en el ejercicio (Abril 2024)"},{"$f":"IFERROR(INDEX(TINPC,MATCH(IF(IFERROR(IF(YEAR(C28)<YEAR(C29),PROPER(TEXT(DATE(YEAR(C29),DATEDIF(DATE(YEAR(C29),1,1),EOMONTH(C29,1),\"M\")/2,1),\"MMMM\")),PROPER(TEXT(DATE(YEAR(C28),MONTH(C29)-(ROUND(DATEDIF(C28,EOMONTH(C29,1),\"M\")-(DATEDIF(C28,EOMONTH(C29,1),\"M\")/2),0)),1),\"MMMM\"))),\"\")=\"Diciembre\",YEAR(C29)-1,YEAR(C29)),INPCA,0),MATCH(IFERROR(IF(YEAR(C28)<YEAR(C29),PROPER(TEXT(DATE(YEAR(C29),DATEDIF(DATE(YEAR(C29),1,1),EOMONTH(C29,1),\"M\")/2,1),\"MMMM\")),PROPER(TEXT(DATE(YEAR(C28),MONTH(C29)-(ROUND(DATEDIF(C28,EOMONTH(C29,1),\"M\")-(DATEDIF(C28,EOMONTH(C29,1),\"M\")/2),0)),1),\"MMMM\"))),\"\"),INPCM,0)),\"\")","v":134.33600000000001}]
[null,{"$f":"\"(/) INPC \"&TEXT(C28,\"mmmm\")&\" \"&YEAR(C28)","v":"(/) INPC mayo 2023"},{"$f":"IFERROR(INDEX(TINPC,MATCH(YEAR(C28),INPCA,0),MATCH(TEXT(C28,\"MMMM\"),INPCM,0)),\"\")","v":128.084}]
[null,"(=) Factor de actualización",{"$f":"IFERROR(IF((C58/C59)<1,1,ROUND(C58/C59,4)),\"\")","v":1.0488}]
[]
[]
[null,"Fecha de adquisición","2023-05-19"]
[null,"Fecha de cálculo","2024-08-29"]
[]
[null,"Precio del bien",158900]
[null,"(+) Impuestos efectivamente pagados (excepto el IVA)"]
[null,"(+) Pago de derechos"]
[null,"(+) Cuotas compensatorias"]
[null,"(+) Preparación del emplazamiento físico"]
[null,"(+) Instalación"]
[null,"(+) Montaje"]
[null,"(+) Manejo"]
[null,"(+) Entrega"]
[null,"(+) Fletes"]
[null,"(+) Transportes"]
[null,"(+) Acareos"]
[null,"(+) Seguro contra riesgos de la transportación"]
[null,"(+) Comisiones sobre compras"]
[null,"(+) Honorarios a agentes o agencias aduanales"]
[null,"(+) Servicios contratados para que la inversión funcione"]
[null,"(+) Equipo de blindaje en caso de automóviles"]
[null,"(=) Monto original de la inversión",{"$f":"SUM(C66:C82)","v":158900}]
[null,"(x) Tasa de depreciación",0.1,{"$f":"IFERROR(IF(C84>0,HYPERLINK(\"#TASAD!B67\",\"% Menores\"),\"\"),\"\")","v":"% Menores"}]
[null,"(=) Depreciación fiscal",{"$f":"IFERROR(ROUND(C83*C84,2),0)","v":15890}]
[null,"(/) Meses del ejercicio",12]
[null,"(x) Meses completos de utilización",{"$f":"IFERROR(IF(YEAR(C63)<YEAR(C64),DATEDIF(DATE(YEAR(C64),1,1),C64,\"ym\")+1,IF(DAY(C63)>1,DATEDIF(DATE(YEAR(C63),MONTH(EOMONTH(C63,1)),1),C64,\"ym\"),DATEDIF(C63,C64,\"ym\")+1)),\"\")","v":8}]
[null,"(=) Depreciación fiscal proporcional",{"$f":"IFERROR(ROUND(C85/C86*C87,2),0)","v":10593.33}]
[null,"(x) Factor de actualización",{"$f":"IF(C60>0,C60,\"\")","v":1.0488}]
[null,"(=) Depreciación fiscal proporcional actualizada",{"$f":"IFERROR(ROUND(C88*C89,2),\"\")","v":11110.28}]

{"sheet":"DEPRECIACIONA","index":4,"n_rows":65,"n_cols":9,"rows_kept":65,"cut":false,"hidden":true,"merged":[[53,1,53,9],[12,2,12,5],[6,1,6,9],[7,1,7,9],[8,1,8,9],[32,1,32,9]]}
[]
[]
[]
[]
[null,"Determinación de la depreciación fiscal en arrendamiento financiero"]
[]
[null,"Artículo 408 LGTOC.- Por virtud del contrato de arrendamiento financiero, el arrendador se obliga a adquirir determinados bienes y a conceder su uso o goce temporal, a plazo forzoso, al arrendatario, quien podrá ser persona física o moral, obligándose este último a pagar como contraprestación, que se liquidará en pagos parciales, según se convenga, una cantidad en dinero determinada o determinable, que cubra el valor de adquisición de los bienes, las cargas financieras y los demás accesorios que se estipulen, y adoptar al vencimiento del contrato alguna de las opciones terminales a que se refiere el artículo 410 de esta Ley.\n\nLos contratos de arrendamiento financiero deberán otorgarse por escrito y deberán inscribirse en la Sección Única del Registro Único de Garantías Mobiliarias del Registro Público de Comercio, en el folio electrónico del arrendador y del arrendatario, a fin de que surta efectos contra tercero, sin perjuicio de hacerlo en otros registros especiales que las leyes determinen.\n \nEn los contratos de arrendamiento financiero en los que se convenga la entrega de anticipos, por parte del arrendador, a los proveedores, fabricantes o constructores de los bienes objeto de dichos contratos que, por su naturaleza, ubicación o proceso de producción, no sean entregados en el momento \nen que se pague su precio o parte del mismo, el arrendatario quedará obligado a pagar al arrendador una cantidad de dinero, determinada o determinable, que cubrirá únicamente el valor de las cargas financieras y demás accesorios de los anticipos hasta en tanto se entregue el bien de que se trate, \ncondición que deberá estar contenida en el contrato de arrendamiento financiero.\n\nEn el supuesto señalado en el párrafo anterior, las partes deberán convenir el plazo durante el cual se entregarán los anticipos, después del cual el arrendatario deberá cubrirlos en el arrendamiento financiero con las características y condiciones pactadas en el contrato correspondiente."]
[null,"Artículo 410 LGTOC.- Al concluir el plazo del vencimiento del contrato o cuando las partes acuerden su vencimiento anticipado y una vez que se hayan cumplido todas las obligaciones, el arrendatario deberá adoptar alguna de las siguientes opciones terminales:\nI. La compra de los bienes a un precio inferior a su valor de adquisición, que quedará fijado en el contrato. En caso de que no se haya fijado, el precio debe ser inferior al valor de mercado a la fecha de compra, conforme a las bases que se establezcan en el contrato;\nII. A prorrogar el plazo para continuar con el uso o goce temporal, pagando una renta inferior a los pagos periódicos que venía haciendo, conforme a las bases que se establezcan en el contrato; y\nIII. A participar con el arrendador en el precio de la venta de los bienes a un tercero, en las proporciones y términos que se convengan en el contrato.\n\nCuando en el contrato se convenga la obligación del arrendatario de adoptar, de antemano, alguna de las opciones antes señaladas, éste será responsable de los daños y perjuicios en caso de incumplimiento. El arrendador no podrá oponerse al ejercicio de dicha opción.\n\nSi en los términos del contrato, queda el arrendatario facultado para adoptar la opción terminal al finalizar el plazo obligatorio, éste deberá notificar por escrito al arrendador, por lo menos con un mes de anticipación al vencimiento del contrato, cuál de ellas va a adoptar, respondiendo de los daños y perjuicios en caso de omisión, con independencia de lo que se convenga en el contrato."]
[null,"Tratándose de contratos de arrendamiento financiero, el arrendatario considerará como monto original de la inversión, la cantidad que se hubiere pactado como valor del bien en el contrato respectivo.\nFundamento: Artículo 38 primer párrafo LISR"]
[]
[null,"Fecha de inicio","2021-08-01"]
[null,"Fecha final del contrato","2024-08-01"]
[null,"Tipo de bien","Automóvil"]
[null,"Valor del bien",650000]
[null,"Años del contrato",{"$f":"IFERROR(DATEDIF(C11,C12,\"y\"),\"\")","v":3}]
[null,"Meses del contrato",{"$f":"IFERROR(DATEDIF(C11,C12,\"m\"),\"\")","v":36}]
[null,"% de depreciación del bien",0.25]
[null,"Años a depreciar fiscalmente",{"$f":"IFERROR(100%/C17,\"\")","v":4}]
[]
[null,"Años a depreciar","Meses a depreciar","% de depreciación","MOI","Depreciación anual","Meses del ejercicio","Depreciación mensual","Depreciación efectuada"]
[null,{"$f":"IF(ROW(A1)<=$C$18,ROW(A1),\"\")","v":1},{"$f":"IF(B21<>\"\",DATEDIF(C11,DATE(YEAR(C11),12,31),\"m\")+IF(DAY(C11)=DAY(C12),1,0),\"\")","v":5},{"$f":"IFERROR(IF(B21<>\"\",$C$17,\"\"),\"\")","v":0.25},{"$f":"IF(B21<>\"\",$C$14,\"\")","v":650000},{"$f":"IFERROR(ROUND(E21*D21,2),\"\")","v":162500},{"$f":"IF(B21<>\"\",12,\"\")","v":12},{"$f":"IFERROR(ROUND(F21/G21*C21,2),\"\")","v":67708.33},{"$f":"IFERROR(IF(B21<>\"\",SUM($H$21:H21),\"\"),\"\")","v":67708.33}]
[null,{"$f":"IF(ROW(A2)<=$C$18,ROW(A2),\"\")","v":2},{"$f":"IFERROR(IF(AND(B22<>\"\",B23<>\"\"),DATEDIF(DATE(YEAR($C$11)+B21,1,1),DATE(YEAR($C$11)+B21,12,31),\"m\")+1,IF(B22<>\"\",DATEDIF(DATE(YEAR($C$12),1,1),$C$12,\"m\"),\"\")),\"\")","v":12},{"$f":"IFERROR(IF(B22<>\"\",$C$17,\"\"),\"\")","v":0.25},{"$f":"IF(B22<>\"\",$C$14,\"\")","v":650000},{"$f":"IFERROR(ROUND(E22*D22,2),\"\")","v":162500},{"$f":"IF(B22<>\"\",12,\"\")","v":12},{"$f":"IFERROR(ROUND(F22/G22*C22,2),\"\")","v":162500},{"$f":"IFERROR(IF(B22<>\"\",SUM($H$21:H22),\"\"),\"\")","v":230208.33000000002}]
[null,{"$f":"IF(ROW(A3)<=$C$18,ROW(A3),\"\")","v":3},{"$f":"IFERROR(IF(AND(B23<>\"\",B24<>\"\"),DATEDIF(DATE(YEAR($C$11)+B22,1,1),DATE(YEAR($C$11)+B22,12,31),\"m\")+1,IF(B23<>\"\",DATEDIF(DATE(YEAR($C$12),1,1),$C$12,\"m\"),\"\")),\"\")","v":12},0.25,650000,162500,12,162500,{"$f":"IFERROR(IF(B23<>\"\",SUM($H$21:H23),\"\"),\"\")","v":392708.33}]
[null,{"$f":"IF(ROW(A4)<=$C$18,ROW(A4),\"\")","v":4},7,0.25,650000,162500,12,94791.67,{"$f":"IFERROR(IF(B24<>\"\",SUM($H$21:H24),\"\"),\"\")","v":487500}]
[null,{"$f":"IF(ROW(A5)<=$C$18,ROW(A5),\"\")","v":""},"","","","","","",{"$f":"IFERROR(IF(B25<>\"\",SUM($H$21:H25),\"\"),\"\")","v":""}]
[null,{"$f":"IF(ROW(A7)<=$C$18,ROW(A7),\"\")","v":""},"","","","","","",{"$f":"IFERROR(IF(B26<>\"\",SUM($H$21:H26),\"\"),\"\")","v":""}]
[null,{"$f":"IF(ROW(A9)<=$C$18,ROW(A9),\"\")","v":""},"","","","","","",{"$f":"IFERROR(IF(B27<>\"\",SUM($H$21:H27),\"\"),\"\")","v":""}]
[null,{"$f":"IF(ROW(A10)<=$C$18,ROW(A10),\"\")","v":""},"","","","","","",{"$f":"IFERROR(IF(B28<>\"\",SUM($H$21:H28),\"\"),\"\")","v":""}]
[null,{"$f":"IF(ROW(A11)<=$C$18,ROW(A11),\"\")","v":""},"","","","","","",{"$f":"IFERROR(IF(B29<>\"\",SUM($H$21:H29),\"\"),\"\")","v":""}]
[null,{"$f":"IF(ROW(A12)<=$C$18,ROW(A12),\"\")","v":""},{"$f":"IFERROR(IF(AND(B30<>\"\",B32<>\"\"),DATEDIF(DATE(YEAR($C$11)+B29,1,1),DATE(YEAR($C$11)+B29,12,31),\"m\")+1,IF(B30<>\"\",DATEDIF(DATE(YEAR($C$12),1,1),$C$12,\"m\"),\"\")),\"\")","v":""},"","","","","",{"$f":"IFERROR(IF(B30<>\"\",SUM($H$21:H30),\"\"),\"\")","v":""}]
[]
[]
[null,"Cuando en los contratos de arrendamiento financiero se haga uso de alguna de sus opciones, para la deducción de las inversiones relacionadas con dichos contratos se observará lo siguiente:\n\nI.\tSi se opta por transferir la propiedad del bien objeto del contrato mediante el pago de una cantidad determinada, o bien, por prorrogar el contrato por un plazo cierto, el importe de la opción se considerará complemento del monto original de la inversión, por lo que se deducirá en el por ciento que resulte de dividir el importe de la opción entre el número de años que falten para terminar de deducir el monto original de la inversión.\nFundamento: Artìculo 38 segundo  pàrrafo LISR"]
[]
[null,"Adquisición a precio reducido o prorroga del contrato"]
[]
[null,"Fecha de la opciòn",{"$f":"C12+1","v":"2024-08-02"}]
[null,"Importe",250000]
[]
[null,"Complemento MOI",{"$f":"C38","v":250000}]
[null,"Años pendientes",{"$f":"IFERROR(((C18*12)-C16)/12,\"\")","v":1}]
[null,"Meses pendientes",{"$f":"IFERROR((C18*12)-C16,\"\")","v":12}]
[]
[null,"Determinación del % de depreciación"]
[null,"Complemento MOI",{"$f":"C40","v":250000}]
[null,"(/) Meses pendientes",{"$f":"C42","v":12}]
[null,"(=) Depreciación mensual",{"$f":"IFERROR(ROUND(C45/C46,2),\"\")","v":20833.330000000002}]
[]
[null,"Depreciación mensual",{"$f":"C47","v":20833.330000000002}]
[null,"(/) Complemento MOI",{"$f":"C45","v":250000}]
[null,"(=) % de depreciación mensual",{"$f":"IFERROR(ROUND(C49/C50,4),\"\")","v":8.3299999999999999E-2}]
[]
[]
[null,"II.\tSi se obtiene participación por la enajenación de los bienes a terceros, deberá considerarse como deducible la diferencia entre los pagos efectuados y las cantidades ya deducidas, menos el ingreso obtenido por la participación en la enajenación a terceros.\nFundamento: Artìculo 38 segundo pàrrafo LISR"]
[]
[null,"Venta a un tercero"]
[null,"Importe de la participación",180000]
[]
[null,"Pagos efectuados x el contrato",{"$f":"C14","v":650000}]
[null,"(-) Depreciación realizada",{"$f":"IFERROR(SUMIF(H21:H30,\">0\"),\"\")","v":487500}]
[null,"(=) Resultado I",{"$f":"IFERROR(C59-C60,\"\")","v":162500}]
[]
[null,"Ingreso obtenido",{"$f":"C57","v":180000}]
[null,"(-) Resultado I",{"$f":"C61","v":162500}]
[null,"(=) Importe deducible",{"$f":"IFERROR(IF(C63>=C64,C63-C64,0),\"\")","v":17500}]

{"sheet":"VENTAAF","index":5,"n_rows":40,"n_cols":6,"rows_kept":40,"cut":false,"hidden":true,"merged":[[4,1,4,9],[11,1,11,9],[14,4,14,5],[22,1,26,2],[33,1,33,5]]}
[]
[]
[null,"Determinación de la ganancia o pérdida en venta de activo fijo"]
[]
[null,"Cuando el contribuyente enajene los bienes o cuando éstos dejen de ser útiles para obtener los ingresos, deducirá, en el ejercicio en que esto ocurra, la parte aún no deducida. Lo anterior no es aplicable a los casos señalados en los párrafos penúltimo y último de este artículo. En el caso en que los bienes dejen de ser útiles para obtener los ingresos, el contribuyente deberá mantener sin deducción un peso en sus registros y presentar aviso ante las autoridades fiscales.\nFundamento: Artículo 31 sexto párrafo LISR"]
[]
[null,"Determinación del saldo pendiente por deducir"]
[null,"Monto original de la inversión"]
[null,"(-) Depreciación acumulada a la fecha de venta"]
[null,"(=) Saldo pendiente por deducir",{"$f":"IFERROR(IF(C8>=C9,ROUND(C8-C9,2),0),\"\")","v":0},"①"]
[]
[null,"Los contribuyentes ajustarán la deducción determinada en los términos de los párrafos primero y sexto de este artículo, multiplicándola por el factor de actualización correspondiente al periodo comprendido desde el mes en el que se adquirió el bien y hasta el último mes de la primera mitad del periodo en el que el bien haya sido utilizado durante el ejercicio por el que se efectúe la deducción.\nFundamento: Artículo 31 séptimo párrafo LISR\n\nCuando sea impar el número de meses comprendidos en el periodo en el que el bien haya sido utilizado en el ejercicio, se considerará como último mes de la primera mitad de dicho periodo el mes inmediato anterior al que corresponda la mitad del periodo.\nFundamento: Artículo 31 octavo párrafo LISR"]
[]
[null,"Fecha de adquisición"]
[null,"Fecha de venta",null,null,"Último mes de la 1a. Mitad"]
[null,"Último mes de la 1a. mitad de utilización",{"$f":"IFERROR(IF(YEAR(C14)<YEAR(C15),PROPER(TEXT(DATE(YEAR(C15),DATEDIF(DATE(YEAR(C15),1,1),EOMONTH(C15,1),\"M\")/2,1),\"MMMM\")),PROPER(TEXT(DATE(YEAR(C14),MONTH(C15)-(ROUND(DATEDIF(C14,EOMONTH(C15,1),\"M\")-(DATEDIF(C14,EOMONTH(C15,1),\"M\")/2),0)),1),\"MMMM\"))),\"\")","v":""},null,"Adquirido en ejercicios anteriores","Adquirido en el ejercicio"]
[null,null,null,null,"Enero","Enero"]
[null,"Determinación del factor de actualización",null,null,"Febrero","Febrero"]
[null,{"$f":"\"INPC de \"&C16&\" \"&IF(C16=\"Diciembre\",YEAR(C15)-1,YEAR(C15))","v":"INPC de  1900"},{"$f":"IFERROR(INDEX(TINPC,MATCH(IF(C16=\"Diciembre\",YEAR(C15)-1,YEAR(C15)),INPCA,0),MATCH(C16,INPCM,0)),\"\")","v":""},null,"Marzo","Marzo"]
[null,{"$f":"\"(/) INPC de \"&TEXT(C14,\"mmmm\")&\" \"&YEAR(C14)","v":"(/) INPC de enero 1900"},{"$f":"IFERROR(INDEX(TINPC,MATCH(YEAR(C14),INPCA,0),MATCH(TEXT(C14,\"MMMM\"),INPCM,0)),\"\")","v":""},null,"Abril","Abril"]
[null,"(=) Factor de actualización",{"$f":"IFERROR(ROUND(C19/C20,4),\"\")","v":""},"②","Mayo","Mayo"]
[null,null,null,null,"Junio","Junio"]
[null,"Cuando de conformidad con las disposiciones fiscales se deban realizar operaciones aritméticas, con el fin de determinar factores o proporciones, las mismas deberán calcularse hasta el diezmilésimo.\nFundamento: Artículo 17-A último párrafo CFF",null,null,"Julio","Julio"]
[null,null,null,null,"Agosto","Agosto"]
[null,null,null,null,"Septiembre","Septiembre"]
[null,null,null,null,"Octubre","Octubre"]
[null,null,null,null,"Noviembre","Noviembre"]
[null,null,null,null,"Diciembre","Diciembre"]
[null,"Actualización del saldo pendiente por deducir"]
[null,"Saldo pendiente por deducir",{"$f":"C10","v":0},"①"]
[null,"(x) Factor de actualización",{"$f":"IFERROR(C21,\"\")","v":""},"②"]
[null,"(=) Saldo pendiente por deducir",{"$f":"IFERROR(ROUND(C30*C31,2),\"\")","v":""},"③"]
[]
[null,"Artículo 31 LISR.\nNoveno párrafo\nPara determinar la ganancia por la enajenación de bienes cuya inversión es parcialmente deducible en los términos de las fracciones II y III del artículo 36 de esta Ley, se considerará la diferencia entre el monto original de la inversión deducible disminuido por las deducciones efectuadas sobre dicho monto y el precio en que se enajenen los bienes.\n\nDécimo párrafo\nTratándose de bienes cuya inversión no es deducible en los términos de las fracciones II, III y IV del artículo 36 de esta Ley, se considerará como ganancia el precio obtenido por su enajenación."]
[]
[null,"Determinación de la ganancia o pérdida en venta de activo fijo"]
[]
[null,"Precio de venta"]
[null,"(-) Saldo pendiente por deducir actualizado",{"$f":"IFERROR(C32,\"\")","v":""},"③"]
[null,{"$f":"IF(C38>=C39,\"(=) Ganancia en venta de activo fijo\",\"(=) Pérdida en venta de activo fijo\")","v":"(=) Ganancia en venta de activo fijo"},{"$f":"IFERROR(IF(C38>=C39,C38-C39,C39-C38),\"\")","v":""}]

{"sheet":"TASAD","index":6,"n_rows":69,"n_cols":4,"rows_kept":69,"cut":false,"hidden":true,"merged":[]}
[]
[]
[]
[]
[null,"Tasas de depreciación persona moral régimen general de Ley y persona física actividad empresarial y profesional",null,"Régimen simplificado de confianza persona moral"]
[null,"Artículo 33 LISR. Los por cientos máximos autorizados tratándose de gastos y cargos diferidos, así como para las erogaciones realizadas en periodos preoperativos, son los siguientes:",null,"Artículo 209 LISR Los contribuyentes a que se refiere este Capítulo determinarán la deducción por inversiones conforme a lo dispuesto en la Sección II, del Capítulo II del Título II de esta Ley, aplicando los porcientos máximos autorizados en este artículo en lugar de los señalados en la Sección II del Capítulo II del Título II de esta Ley, siempre que el monto total de las inversiones en el ejercicio no hubiera excedido de tres millones de pesos. Cuando el monto de las inversiones en el ejercicio exceda de la cantidad señalada, se deberán aplicar los porcientos máximos establecidos en la Sección II, del Capítulo II, del Título II de esta Ley. Para estos efectos, se consideran inversiones las señaladas en el artículo 32 de esta Ley."]
[null,"5% para cargos diferidos.",null,"A. Tratándose de gastos y cargos diferidos, así como para las erogaciones realizadas en periodos preoperativos, son los siguientes:"]
[null,"10% para erogaciones realizadas en periodos preoperativos.",null,"5% para cargos diferidos."]
[null,"15% para regalías, para asistencia técnica, así como para otros gastos diferidos, a excepción de los señalados en la fracción IV del presente artículo.",null,"10% para erogaciones realizadas en periodos preoperativos."]
[null,"En el caso de activos intangibles que permitan la explotación de bienes del dominio público o la prestación de un servicio público concesionado, el por ciento máximo se calculará dividiendo la unidad entre el número de años por los cuales se otorgó la concesión, el cociente así obtenido se multiplicará por cien y el producto se expresará en por ciento.",null,"15% para regalías, para asistencia técnica, así como para otros gastos diferidos, a excepción de los señalados en la fracción IV del presente artículo."]
[null,"Artículo 34 LISR. Los por cientos máximos autorizados, tratándose de activos fijos por tipo de bien son los siguientes:",null,"En el caso de activos intangibles que permitan la explotación de bienes del dominio público o la prestación de un servicio público concesionado, el por ciento máximo se calculará dividiendo la unidad entre el número de años por los cuales se otorgó la concesión, el cociente así obtenido se multiplicará por cien y el producto se expresará en por ciento."]
[null,"Tratándose de construcciones:",null,"B. Tratándose de activos fijos por tipo de bien son los siguientes:"]
[null,"10% para inmuebles declarados como monumentos arqueológicos, artísticos, históricos o patrimoniales, conforme a la Ley Federal sobre Monumentos y Zonas Arqueológicos, Artísticos e Históricos, que cuenten con el certificado de restauración expedido por el Instituto Nacional de Antropología e Historia o el Instituto Nacional de Bellas Artes.",null,"Tratándose de construcciones:"]
[null,"5% en los demás casos, incluyendo las instalaciones, adiciones, reparaciones, mejoras, adaptaciones, así como cualquier otra construcción que se realice en un lote minero de conformidad con el artículo 12 de la Ley Minera.",null,"20% para inmuebles declarados como monumentos arqueológicos, artísticos, históricos o patrimoniales, conforme a la Ley Federal sobre Monumentos y Zonas Arqueológicos, Artísticos e Históricos, que cuenten con el certificado de restauración expedido por el Instituto Nacional de Antropología e Historia o el Instituto Nacional de Bellas Artes."]
[null,"Tratándose de ferrocarriles:",null,"13% en los demás casos."]
[null,"3% para bombas de suministro de combustible a trenes.",null,"Tratándose de ferrocarriles:"]
[null,"5% para vías férreas.",null,"10% para bombas de suministro de combustible a trenes."]
[null,"6% para carros de ferrocarril, locomotoras, armones y autoarmones.",null,"10% para vías férreas."]
[null,"7% para maquinaria niveladora de vías, desclavadoras, esmeriles para vías, gatos de motor para levantar la vía, removedora, insertadora y taladradora de durmientes.",null,"10% para carros de ferrocarril, locomotoras, armones y autoarmones."]
[null,"10% para el equipo de comunicación, señalización y telemando.",null,"20% para maquinaria niveladora de vías, desclavadoras, esmeriles para vías, gatos de motor para levantar la vía, removedora, insertadora y taladradora de durmientes."]
[null,"10% para mobiliario y equipo de oficina.",null,"20% para el equipo de comunicación, señalización y telemando."]
[null,"6% para embarcaciones.",null,"25% para mobiliario y equipo de oficina."]
[null,"Tratándose de aviones:",null,"20% para embarcaciones."]
[null,"25% para los dedicados a la aerofumigación agrícola.",null,"Tratándose de aviones:"]
[null,"10% para los demás.",null,"25% para los dedicados a la aerofumigación agrícola."]
[null,"25% para automóviles, autobuses, camiones de carga, tractocamiones, montacargas y remolques.",null,"20% para los demás."]
[null,"30% para computadoras personales de escritorio y portátiles; servidores; impresoras, lectores ópticos, graficadores, lectores de código de barras, digitalizadores, unidades de almacenamiento externo y concentradores de redes de cómputo.",null,"25% para automóviles, autobuses, camiones de carga, tractocamiones, montacargas y remolques."]
[null,"35% para dados, troqueles, moldes, matrices y herramental.",null,"50% para computadoras personales de escritorio y portátiles; servidores; impresoras, lectores ópticos, graficadores, lectores de código de barras, digitalizadores, unidades de almacenamiento externo y concentradores de redes de cómputo."]
[null,"100% para semovientes y vegetales.",null,"50% para dados, troqueles, moldes, matrices y herramental."]
[null,"Tratándose de comunicaciones telefónicas:",null,"100% para semovientes y vegetales."]
[null,"5% para torres de transmisión y cables, excepto los de fibra óptica.",null,"Tratándose de comunicaciones telefónicas:"]
[null,"8% para sistemas de radio, incluyendo equipo de transmisión y manejo que utiliza el espectro radioeléctrico, tales como el de radiotransmisión de microonda digital o analógica, torres de microondas y guías de onda.",null,"10% para torres de transmisión y cables, excepto los de fibra óptica."]
[null,"10% para equipo utilizado en la transmisión, tales como circuitos de la planta interna que no forman parte de la conmutación y cuyas funciones se enfocan hacia las troncales que llegan a la central telefónica, incluye multiplexores, equipos concentradores y ruteadores.",null,"20% para sistemas de radio, incluyendo equipo de transmisión y manejo que utiliza el espectro radioeléctrico, tales como el de radiotransmisión de microonda digital o analógica, torres de microondas y guías de onda."]
[null,"25% para equipo de la central telefónica destinado a la conmutación de llamadas de tecnología distinta a la electromecánica.",null,"20% para equipo utilizado en la transmisión, tales como circuitos de la planta interna que no forman parte de la conmutación y cuyas funciones se enfocan hacia las troncales que llegan a la central telefónica, incluye multiplexores, equipos concentradores y ruteadores."]
[null,"10% para los demás.",null,"25% para equipo de la central telefónica destinado a la conmutación de llamadas de tecnología distinta a la electromecánica."]
[null,"Tratándose de comunicaciones satelitales:",null,"20% para los demás."]
[null,"8% para el segmento satelital en el espacio, incluyendo el cuerpo principal del satélite, los transpondedores, las antenas para la transmisión y recepción de comunicaciones digitales y análogas, y el equipo de monitoreo en el satélite.",null,"Tratándose de comunicaciones satelitales:"]
[null,"10% para el equipo satelital en tierra, incluyendo las antenas para la transmisión y recepción de comunicaciones digitales y análogas y el equipo para el monitoreo del satélite.",null,"20% para el segmento satelital en el espacio, incluyendo el cuerpo principal del satélite, los transpondedores, las antenas para la transmisión y recepción de comunicaciones digitales y análogas, y el equipo de monitoreo en el satélite."]
[null,"100% para adaptaciones que se realicen a instalaciones que impliquen adiciones o mejoras al activo fijo, siempre que dichas adaptaciones tengan como finalidad facilitar a las personas con discapacidad a que se refiere el artículo 186 de esta Ley, el acceso y uso de las instalaciones del contribuyente.",null,"20% para el equipo satelital en tierra, incluyendo las antenas para la transmisión y recepción de comunicaciones digitales y análogas y el equipo para el monitoreo del satélite."]
[null,"100% para maquinaria y equipo para la generación de energía proveniente de fuentes renovables o de sistemas de cogeneración de electricidad eficiente.",null,"100% para adaptaciones que se realicen a instalaciones que impliquen adiciones o mejoras al activo fijo, siempre que dichas adaptaciones tengan como finalidad facilitar a las personas con discapacidad a que se refiere el artículo 186 de esta Ley, el acceso y uso de las instalaciones del contribuyente."]
[null,"25% para bicicletas convencionales, bicicletas y motocicletas cuya propulsión sea a través de baterías eléctricas recargables.",null,"100% para maquinaria y equipo para la generación de energía proveniente de fuentes renovables o de sistemas de cogeneración de electricidad eficiente."]
[null,"5% para el derecho de usufructo constituido sobre un bien inmueble.",null,"50% para bicicletas convencionales, bicicletas y motocicletas cuya propulsión sea a través de baterías eléctricas recargables."]
[null,"Artículo 35 LISR. Para la maquinaria y equipo distintos de los señalados en el artículo anterior, se aplicarán, de acuerdo a la actividad en que sean utilizados, los por cientos siguientes:",null,"C. Para la maquinaria y equipo distintos de los señalados, se aplicarán, de acuerdo a la actividad en que sean utilizados, los porcientos siguientes:"]
[null,"5% en la generación, conducción, transformación y distribución de electricidad; en la molienda de granos; en la producción de azúcar y sus derivados; en la fabricación de aceites comestibles; en el transporte marítimo, fluvial y lacustre.",null,"20% en la generación, conducción, transformación y distribución de electricidad; en la molienda de granos; en la producción de azúcar y sus derivados; en la fabricación de aceites comestibles; en el transporte marítimo, fluvial y lacustre."]
[null,"6% en la producción de metal obtenido en primer proceso; en la fabricación de productos de tabaco y derivados del carbón natural.",null,"10% en la producción de metal obtenido en primer proceso; en la fabricación de productos de tabaco y derivados del carbón natural."]
[null,"7% en la fabricación de pulpa, papel y productos similares.",null,"13% en la fabricación de pulpa, papel y productos similares."]
[null,"8% en la fabricación de vehículos de motor y sus partes; en la construcción de ferrocarriles y navíos; en la fabricación de productos de metal, de maquinaria y de instrumentos profesionales y científicos; en la elaboración de productos alimenticios y de bebidas, excepto granos, azúcar, aceites comestibles y derivados.",null,"13% en la fabricación de vehículos de motor y sus partes; en la construcción de ferrocarriles y navíos; en la fabricación de productos de metal, de maquinaria y de instrumentos profesionales y científicos; en la elaboración de productos alimenticios y de bebidas, excepto granos, azúcar, aceites comestibles y derivados."]
[null,"9% en el curtido de piel y la fabricación de artículos de piel; en la elaboración de productos químicos, petroquímicos y farmacobiológicos; en la fabricación de productos de caucho y de plástico; en la impresión y publicación gráfica.",null,"20% en el curtido de piel y la fabricación de artículos de piel; en la elaboración de productos químicos, petroquímicos y farmacobiológicos; en la fabricación de productos de caucho y de plástico; en la impresión y publicación gráfica."]
[null,"10% en el transporte eléctrico; en infraestructura fija para el transporte, almacenamiento y procesamiento de hidrocarburos, en plataformas y embarcaciones de perforación de pozos, y embarcaciones de procesamiento y almacenamiento de hidrocarburos.",null,"20% en el transporte eléctrico; en infraestructura fija para el transporte, almacenamiento y procesamiento de hidrocarburos, en plataformas y embarcaciones de perforación de pozos, y embarcaciones de procesamiento y almacenamiento de hidrocarburos."]
[null,"11% en la fabricación, acabado, teñido y estampado de productos textiles, así como de prendas para el vestido.",null,"25% en la fabricación, acabado, teñido y estampado de productos textiles, así como de prendas para el vestido."]
[null,"12% en la industria minera; en la construcción de aeronaves y en el transporte terrestre de carga y pasajeros. Lo dispuesto en esta fracción no será aplicable a la maquinaria y equipo señalada en la fracción II de este artículo.",null,"25% en la industria minera; en la construcción de aeronaves y en el transporte terrestre de carga y pasajeros. Lo dispuesto en esta fracción no será aplicable a la maquinaria y equipo señalada en la fracción II de este artículo."]
[null,"16% en el transporte aéreo; en la transmisión de los servicios de comunicación proporcionados por telégrafos y por las estaciones de radio y televisión.",null,"25% en el transporte aéreo; en la transmisión de los servicios de comunicación proporcionados por telégrafos y por las estaciones de radio y televisión."]
[null,"20% en restaurantes.",null,"33% en restaurantes."]
[null,"25% en la industria de la construcción; en actividades de agricultura, ganadería, silvicultura y pesca.",null,"25% en la industria de la construcción; en actividades de agricultura, ganadería, silvicultura y pesca."]
[null,"35% para los destinados directamente a la investigación de nuevos productos o desarrollo de tecnología en el país.",null,"35% para los destinados directamente a la investigación de nuevos productos o desarrollo de tecnología en el país."]
[null,"50% en la manufactura, ensamble y transformación de componentes magnéticos para discos duros y tarjetas electrónicas para la industria de la computación.",null,"50% en la manufactura, ensamble y transformación de componentes magnéticos para discos duros y tarjetas electrónicas para la industria de la computación."]
[null,"10% en otras actividades no especificadas en este artículo.",null,"20% en otras actividades no especificadas en este artículo."]
[]
[]
[null,"Tasas de depreciación persona física enajenación de bienes, adquisición de bienes y arrendamiento de inmuebles"]
[null,"Artículo 149 LISR. Las inversiones cuya deducción autoriza este Título, excepto las reguladas por el Capítulo II Secciones I o II del mismo, únicamente podrán deducirse mediante la aplicación anual sobre el monto de las mismas y hasta llegar a este límite, de los siguientes por cientos:"]
[null,"5% para construcciones."]
[null,"10% para gastos de instalación."]
[null,"30% para equipo de cómputo electrónico, consistente en una máquina o grupo de máquinas interconectadas conteniendo unidades de entrada, almacenamiento, computación, control y unidades de salida, usando circuitos electrónicos en los elementos principales para ejecutar operaciones aritméticas o lógicas en forma automática por medio de instrucciones programadas, almacenadas internamente o controladas externamente, así como para el equipo periférico de dicho equipo de cómputo, tal como unidades de discos ópticos, impresoras, lectores ópticos, graficadores, unidades de respaldo, lectores de código de barras, digitalizadores, unidades de almacenamiento externo, así como monitores y teclados conectados a un equipo de cómputo."]
[null,"10% para equipo y bienes muebles tangibles, no comprendidas en las fracciones anteriores."]
[]
[null,"El contribuyente podrá aplicar por cientos menores a los autorizados por esta Ley. En este caso, el por ciento elegido será obligatorio y podrá cambiarse, sin exceder del máximo autorizado. Tratándose del segundo y posteriores cambios deberán transcurrir cuando menos cinco años desde el último cambio; cuando el cambio se quiera realizar antes de que transcurra dicho plazo, se deberá cumplir con los requisitos que establezca el Reglamento de esta Ley.\nFundamento: Artículo 31 cuarto párrafo LISR"]
[null,"Artículo 73 RLISR. El por ciento de deducción de inversiones a que se refiere el artículo 31, párrafo cuarto de la Ley podrá cambiarse una sola vez en cada periodo de cinco años para cada bien de que se trate. Cuando no hubieran transcurrido cinco años como mínimo desde el último cambio, podrá cambiarse nuevamente por una sola vez, siempre que se dé alguno de los supuestos establecidos en el artículo 20 de este Reglamento o bien, cuando el contribuyente no haya incurrido en pérdida fiscal en el ejercicio en el cual efectúa el cambio o en cualquiera de los últimos tres anteriores a éste, siempre que el cambio no tenga como efecto que se produzca una pérdida fiscal en el ejercicio de que se trate."]
[null,"Artículo 20 RLISR. Para efectos del artículo 17, párrafo primero, fracción III, párrafo tercero de la Ley, el contribuyente podrá cambiar la opción a que se refiere dicha fracción por una sola vez, antes de que transcurran cinco años como\nmínimo desde el último cambio, siempre que se encuentre en cualquiera de los siguientes supuestos:\nI. Cuando se fusione con otra sociedad;\nII. Cuando los socios enajenen acciones o partes sociales que representen cuando menos un 25% del capital social del contribuyente;\nIII. La sociedad que obtenga el carácter de integrada en términos del artículo 61 de la Ley, en el ejercicio siguiente a aquél en que la sociedad integradora cuente con la autorización a que se refiere el artículo 63\nde la Ley, o bien, cuando se incorpore o desincorpore como sociedad integrada conforme a los artículos 66 y 68 de dicha Ley, y\nIV. Cuando se escinda la sociedad."]

{"sheet":"OTROS","index":7,"n_rows":47,"n_cols":3,"rows_kept":47,"cut":false,"hidden":true,"merged":[]}
[]
[]
[]
[]
[]
[]
[]
[]
[]
[]
[]
[]
[]
[]
[]
[]
[]
[]
[]
[]
[]
[]
[]
[]
[]
[]
[]
[]
[]
[]
[]
[]
[]
[]
[]
[]
[]
[]
[]
[]
[]
[]
[]
[]
[]
[]
[null,"Fuente","Rev_TFJA_Mar_2022.pdf"]

{"sheet":"RETENCION","index":8,"n_rows":36,"n_cols":7,"rows_kept":36,"cut":false,"hidden":true,"merged":[[3,2,3,5],[4,2,4,5],[24,3,24,4],[24,5,24,6],[25,3,25,4],[25,5,25,6],[20,1,20,2],[20,3,20,4],[20,5,20,6],[21,1,21,2],[21,3,21,4],[21,5,21,6],[12,6,14,6],[18,3,18,4],[18,5,18,6],[19,1,19,2],[26,3,26,4],[26,5,26,6],[22,1,22,2],[22,3,22,4],[22,5,22,6],[23,1,23,2],[23,3,23,4],[23,5,23,6],[19,3,19,4],[19,5,19,6],[18,1,18,2],[8,1,10,1],[8,2,9,2],[8,4,11,4],[12,1,14,1],[12,4,14,4],[12,5,14,5],[32,1,32,5],[33,1,33,5],[34,1,34,5],[30,1,30,5],[35,1,35,5],[31,1,31,5]]}
[]
[]
[]
[null,"Tipo de retención","Fundamento",null,null,null,"Quien retiene"]
[null,"Retención de salarios y asimilados a salarios","Artículo 99 LISR. Quienes hagan pagos por los conceptos a que se refiere este Capítulo, tendrán las siguientes obligaciones:\n\nI.\tEfectuar las retenciones señaladas en el artículo 96 de esta Ley.\n\nII.\tCalcular el impuesto anual de las personas que les hubieren prestado servicios subordinados, en los términos del artículo 97 de esta Ley.",null,null,null,"Persona física y/o moral con trabajadores o asimilados a salarios"]
[]
[]
[null,"Régimen fiscal","Emisor","Actividad","Receptor","Retención","Fundamento"]
[null,612,"Persona física actividad empresarial","Comisión","Persona moral régimen general de Ley y RESICO","IVA","Artículo 1-A fración II inciso d) LIVA"]
[null,null,null,"Fletes",null,"IVA","Artículo 1-A fración II inciso c) LIVA"]
[null,null,"Persona física servicios profesionales","Honorarios",null,"ISR e IVA","Artículo 106 quinto párrafo LISR y 1-A fracción II inciso a) LIVA"]
[null,606,"Persona física arrendamiento de inmuebles","Arrendamiento",null,"ISR e IVA","Artículo 116 quinto párrafo LISR y 1-A fracción II inciso a) LIVA"]
[null,626,"Persona física actividad empresarial","Ventas","Persona moral régimen general de Ley y RESICO","ISR e IVA","Artículo 113-J quinto párrafo LISR y 1-A fracción II inciso a) LIVA"]
[null,null,"Persona física servicios profesionales","Honorarios"]
[null,null,"Persona física arrendamiento de inmuebles","Arrendamiento"]
[]
[null,"Obligación de emitir constancia de retención por parte de las personas morales"]
[]
[null,"En que caso",null,"Obligación de emitir constancia",null,"No obligado a emitir constancia de retención"]
[null,"Se reciben servicios profesionales de una persona física",null,"Articulo 106 quinto párrafo LISR, 1-A fracción II inciso a) LIVA",null,"Artículo 106 sexto párrafo LISR, 32 fracción V segundo párrafo LIVA"]
[null,"Uso o goce de bienes inmuebles recibidos de una persona física",null,"Articulo 116 quinto párrafo LISR, 1-A fracción II inciso a) LIVA",null,"Artículo 116 sexto párrafo LISR, 32 fracción V segundo párrafo LIVA"]
[null,"Adquisición, prestación de servicios o el uso o goce temporal de bienes, de un RESICO persona física",null,"Artículo 113-J LISR, en su caso artículo 1-A fraccción II LIVA",null,"Regla 3.13.27 RMF 2024, 32 fracción V segundo párrafo LIVA"]
[null,"Adquisicion de desperdicios adquiridos a una persona física",null,"Artículo 1-A LIVA, regla 2.7.3.5 RMF 2024"]
[null,"Servicios de comisión prestados por personas físicas",null,"Artículo 1-A fracción II inciso c) LIVA"]
[null,"Servicios de autotransporte de bienes",null,"Artículo 1-A fracción II inciso d) LIVA",null,"Regla 2.7.1.11 RMF 2024"]
[null,"Pago de dividendos cuando se retiene el 10%",null,"Artículo 140 segundo párrafo LISR"]
[null,"Retención de salarios  y asimilados a salarios",null,"Artículo 96 LISR",null,"Artículo 99 fracción III LISR"]
[]
[]
[]
[null,"Obligación",null,null,null,null,"Fundamento"]
[null,"En el caso de prestación de servicios profesionales de una persona física a una moral ésta última debe de retener el 10% sobre el monto de la contraprestación pagada.",null,null,null,null,"Artículo 106 quinto párrafo LISR."]
[null,"En el caso de una venta, prestación de servicios o del uso o goce temporal de bienes de una persona física RESICO a una persona moral ésta última debe de retener el 1.25% del valor de la contraprestación efectivamente pagada.",null,null,null,null,"Artículo 113-J LISR."]
[null,"En el arrendamiento de inmuebles de una persona física a una persona moral ésta última debe de retener el 10% del valor de la contraprestación pagada.",null,null,null,null,"Artículo 116 quinto párrafo LISR."]
[null,"Cuando la persona moral pague dividendos de utilidades provenientes del ejercicio 2014 y posteriores debe de realizar la retención de un 10% como pago definitivo al momento del pago.",null,null,null,null,"Artículo 140 primer párrafo LISR."]
[null,"Cunado la persona moral realice pagos de salarios y asimilados a salarios debe de realizar la retención de acuerdo al artículo 96 de la LISR.",null,null,null,null,"Artículo 99 fracción I LISR."]

{"sheet":"NOMINA","index":9,"n_rows":5,"n_cols":72,"rows_kept":5,"cut":false,"hidden":true,"merged":[[3,51,3,52],[3,53,3,56],[3,57,3,61],[3,62,3,66],[3,67,3,69]]}
[null,null,null,null,null,null,null,null,null,null,null,null,null,null,null,null,null,null,null,null,null,null,null,null,null,null,null,null,null,{"$f":"IF(AND(AA6>=2,AA6<=4,AE6>=1,AE6<=8),0,1)","v":1}]
[]
[]
[null,null,null,null,null,null,null,null,null,null,null,null,null,null,null,null,null,null,null,null,null,null,null,null,null,null,null,null,null,null,null,null,null,null,null,null,null,null,null,null,null,null,null,null,null,null,null,null,null,null,null,"Vanta acciones",null,"Tiempo extra",null,null,null,"Jubilaciones, pensiones, retiro",null,null,null,null,"Pagos por separación",null,null,null,null,"Incapacidades"]
[null,"Fecha de emisión","Fecha de timbrado","UUID","Concepto","Serie","Folio","Forma de pago","Metodo de pago","Moneda","Registro patronal","Nombre del patron","Riesgo de puesto","Concepto riesgo de puesto (este dato no pertenece al XML)","No. De empleado","Nombre del empleado","Departamento","Puesto","Clave de la entidad federrativa","Estado (este dato no pertenece al XML)","CURP","RFC","No. SS","Fecha inicio relación laboral","Salario diario integrado","Salario base de cotización","Tipo de regimen","Tipo de régimen (este dato no pertenece al XML)","Tipo de jornada","Tipo de jornada (este dato no pertenece al XML)","Tipo de contrato","Tipo de contrato (este dato no pertenece al XML)","Antigüedad","Fecha inicial pago","Fecha final pago","Fecha de pago","Periodicidad de pago","Periodicidad de pago  (este dato no pertenece al XML)","Clave de percepción","Percepción","Percepción de acuerdo al catálogo del SAT  (este dato no pertenece al XML)","Percepción exenta","Percepción gravado","Clave de deducción","Deducción","Deducción de acuerdo al catálogo del SAT  (este dato no pertenece al XML)","Importe deducción","Total del comprobante","Tipo de relación","UUID tipo de relación","Subsidio al empleo causado","Valor de mercado","Precio al otorgarse","Días","Tipo de horas","Horas extras","Importe pagado","Total en una sola exhibición","Total parcialidad","Monto diario","Ingreso acumulable","Ingreso no acumulable","Total pagado","No. de años de servicio","Último sueldo mensual ordinario","Ingreso acumulable","Ingreso no acumulable","Días de incapacidad","Tipo de incapacidad","Importe monetario","Dìas pagados","Ruta"]

{"sheet":"CONCENTRADO","index":10,"n_rows":178,"n_cols":11,"rows_kept":178,"cut":false,"hidden":true,"merged":[[6,3,6,4],[6,5,6,6],[6,7,6,8],[6,9,6,10]]}
[]
[]
[]
[null,null,"Fecha inicial de pago "]
[null,null,"Fecha final de pago "]
[]
[null,"Catálogo de percepciones",null,"Régimen 02",null,"Régimen 03, 04 y 12",null,"Régimen 13",null,"Régimen 05, 06, 07, 08, 09, 10, 11"]
[null,"c_TipoPercepcion","Descripción","Gravado","Exento","Gravado","Exento","Gravado","Exento","Gravado","Exento"]
[null,1,"Sueldos, Salarios  Rayas y Jornales"]
[null,2,"Gratificación Anual (Aguinaldo)"]
[null,3,"Participación de los Trabajadores en las Utilidades PTU"]
[null,4,"Reembolso de Gastos Médicos Dentales y Hospitalarios"]
[null,5,"Fondo de Ahorro"]
[null,6,"Caja de ahorro"]
[null,9,"Contribuciones a Cargo del Trabajador Pagadas por el Patrón"]
[null,10,"Premios por puntualidad"]
[null,11,"Prima de Seguro de vida"]
[null,12,"Seguro de Gastos Médicos Mayores"]
[null,13,"Cuotas Sindicales Pagadas por el Patrón"]
[null,14,"Subsidios por incapacidad"]
[null,15,"Becas para trabajadores y/o hijos"]
[null,19,"Horas extra"]
[null,20,"Prima dominical"]
[null,21,"Prima vacacional"]
[null,22,"Prima por antigüedad"]
[null,23,"Pagos por separación"]
[null,24,"Seguro de retiro"]
[null,25,"Indemnizaciones"]
[null,26,"Reembolso por funeral"]
[null,27,"Cuotas de seguridad social pagadas por el patrón"]
[null,28,"Comisiones"]
[null,29,"Vales de despensa"]
[null,30,"Vales de restaurante"]
[null,31,"Vales de gasolina"]
[null,32,"Vales de ropa"]
[null,33,"Ayuda para renta"]
[null,34,"Ayuda para artículos escolares"]
[null,35,"Ayuda para anteojos"]
[null,36,"Ayuda para transporte"]
[null,37,"Ayuda para gastos de funeral"]
[null,38,"Otros ingresos por salarios"]
[null,39,"Jubilaciones, pensiones o haberes de retiro"]
[null,44,"Jubilaciones, pensiones o haberes de retiro en parcialidades"]
[null,45,"Ingresos en acciones o títulos valor que representan bienes"]
[null," 046","Ingresos asimilados a salarios"]
[null," 047","Alimentación diferentes a los establecidos en el Art 94 último párrafo LISR"]
[null,48,"Habitación"]
[null,49,"Premios por asistencia"]
[null,50,"Viáticos"]
[null,51,"Pagos por gratificaciones, primas, compensaciones, recompensas u otros a extrabajadores derivados de jubilación en parcialidades"]
[null,52,"Pagos que se realicen a extrabajadores que obtengan una jubilación en parcialidades derivados de la ejecución de resoluciones judicial o de un laudo"]
[null,53,"Pagos que se realicen a extrabajadores que obtengan una jubilación en una sola exhibición derivados de la ejecución de resoluciones judicial o de un laudo"]
[null,null,"Totales"]
[]
[null,"Catálogo de deducciones"]
[null,"c_TipoDeduccion","Descripción","Régimen 02","Régimen 03, 04 y 12","Régimen 13","Régimen 05, 06, 07, 08, 09, 10, 11"]
[null,1,"Seguridad social"]
[null,2,"ISR"]
[null,3,"Aportaciones a retiro, cesantía en edad avanzada y vejez."]
[null,4,"Otros"]
[null,5,"Aportaciones a Fondo de vivienda"]
[null,6,"Descuento por incapacidad"]
[null,7,"Pensión alimenticia"]
[null,8,"Renta"]
[null,9,"Préstamos provenientes del Fondo Nacional de la Vivienda para los Trabajadores"]
[null,10,"Pago por crédito de vivienda"]
[null,11,"Pago de abonos INFONACOT"]
[null,12,"Anticipo de salarios"]
[null,13,"Pagos hechos con exceso al trabajador"]
[null,14,"Errores"]
[null,15,"Pérdidas"]
[null,16,"Averías"]
[null,17,"Adquisición de artículos producidos por la empresa o establecimiento"]
[null,18,"Cuotas para la constitución y fomento de sociedades cooperativas y de cajas de ahorro"]
[null,19,"Cuotas sindicales"]
[null,20,"Ausencia (Ausentismo)"]
[null,21,"Cuotas obrero patronales"]
[null,22,"Impuestos Locales"]
[null,23,"Aportaciones voluntarias"]
[null,24,"Ajuste en Gratificación Anual (Aguinaldo) Exento"]
[null,25,"Ajuste en Gratificación Anual (Aguinaldo) Gravado"]
[null,26,"Ajuste en Participación de los Trabajadores en las Utilidades PTU Exento"]
[null,27,"Ajuste en Participación de los Trabajadores en las Utilidades PTU Gravado"]
[null,28,"Ajuste en Reembolso de Gastos Médicos Dentales y Hospitalarios Exento"]
[null,29,"Ajuste en Fondo de ahorro Exento"]
[null,30,"Ajuste en Caja de ahorro Exento"]
[null,31,"Ajuste en Contribuciones a Cargo del Trabajador Pagadas por el Patrón Exento"]
[null,32,"Ajuste en Premios por puntualidad Gravado"]
[null,33,"Ajuste en Prima de Seguro de vida Exento"]
[null,34,"Ajuste en Seguro de Gastos Médicos Mayores Exento"]
[null,35,"Ajuste en Cuotas Sindicales Pagadas por el Patrón Exento"]
[null,36,"Ajuste en Subsidios por incapacidad Exento"]
[null,37,"Ajuste en Becas para trabajadores y/o hijos Exento"]
[null,38,"Ajuste en Horas extra Exento"]
[null,39,"Ajuste en Horas extra Gravado"]
[null,40,"Ajuste en Prima dominical Exento"]
[null,41,"Ajuste en Prima dominical Gravado"]
[null,42,"Ajuste en Prima vacacional Exento"]
[null,43,"Ajuste en Prima vacacional Gravado"]
[null,44,"Ajuste en Prima por antigüedad Exento"]
[null,45,"Ajuste en Prima por antigüedad Gravado"]
[null,46,"Ajuste en Pagos por separación Exento"]
[null,47,"Ajuste en Pagos por separación Gravado"]
[null,48,"Ajuste en Seguro de retiro Exento"]
[null,49,"Ajuste en Indemnizaciones Exento"]
[null,50,"Ajuste en Indemnizaciones Gravado"]
[null,51,"Ajuste en Reembolso por funeral Exento"]
[null,52,"Ajuste en Cuotas de seguridad social pagadas por el patrón Exento"]
[null,53,"Ajuste en Comisiones Gravado"]
[null,54,"Ajuste en Vales de despensa Exento"]
[null,55,"Ajuste en Vales de restaurante Exento"]
[null,56,"Ajuste en Vales de gasolina Exento"]
[null,57,"Ajuste en Vales de ropa Exento"]
[null,58,"Ajuste en Ayuda para renta Exento"]
[null,59,"Ajuste en Ayuda para artículos escolares Exento"]
[null,60,"Ajuste en Ayuda para anteojos Exento"]
[null,61,"Ajuste en Ayuda para transporte Exento"]
[null,62,"Ajuste en Ayuda para gastos de funeral Exento"]
[null,63,"Ajuste en Otros ingresos por salarios Exento"]
[null,64,"Ajuste en Otros ingresos por salarios Gravado"]
[null,65,"Ajuste en Jubilaciones, pensiones o haberes de retiro en una sola exhibición Exento "]
[null,66,"Ajuste en Jubilaciones, pensiones o haberes de retiro en una sola exhibición Gravado"]
[null,67,"Ajuste en Pagos por separación Acumulable"]
[null,68,"Ajuste en Pagos por separación No acumulable"]
[null,69,"Ajuste en Jubilaciones, pensiones o haberes de retiro en parcialidades Exento"]
[null,70,"Ajuste en Jubilaciones, pensiones o haberes de retiro en parcialidades Gravado"]
[null,71,"Ajuste en Subsidio para el empleo (efectivamente entregado al trabajador)"]
[null,72,"Ajuste en Ingresos en acciones o títulos valor que representan bienes Exento"]
[null,73,"Ajuste en Ingresos en acciones o títulos valor que representan bienes Gravado"]
[null,74,"Ajuste en Alimentación Exento"]
[null,75,"Ajuste en Alimentación Gravado"]
[null,76,"Ajuste en Habitación Exento"]
[null,77,"Ajuste en Habitación Gravado"]
[null,78,"Ajuste en Premios por asistencia"]
[null,79,"Ajuste en Pagos distintos a los listados y que no deben considerarse como ingreso por sueldos, salarios o ingresos asimilados."]
[null,80,"Ajuste en Viáticos gravados"]
[null,81,"Ajuste en Viáticos (entregados al trabajador)"]
[null,"082","Ajuste en Fondo de ahorro Gravado"]
[null,"083","Ajuste en Caja de ahorro Gravado"]
[null,"084","Ajuste en Prima de Seguro de vida Gravado"]
[null,"085","Ajuste en Seguro de Gastos Médicos Mayores Gravado"]
[null,"086","Ajuste en Subsidios por incapacidad Gravado"]
[null,"087","Ajuste en Becas para trabajadores y/o hijos Gravado"]
[null,"088","Ajuste en Seguro de retiro Gravado"]
[null,"089","Ajuste en Vales de despensa Gravado"]
[null,"090","Ajuste en Vales de restaurante Gravado"]
[null,"091","Ajuste en Vales de gasolina Gravado"]
[null,"092","Ajuste en Vales de ropa Gravado"]
[null,"093","Ajuste en Ayuda para renta Gravado"]
[null,"094","Ajuste en Ayuda para artículos escolares Gravado"]
[null,"095","Ajuste en Ayuda para anteojos Gravado"]
[null,"096","Ajuste en Ayuda para transporte Gravado"]
[null,"097","Ajuste en Ayuda para gastos de funeral Gravado"]
[null,"098","Ajuste a ingresos asimilados a salarios gravados"]
[null,"099","Ajuste a ingresos por sueldos y salarios gravados"]
[null,100,"Ajuste en Viáticos exentos"]
[null,101,"ISR Retenido de ejercicio anterior"]
[null,102,"Ajuste a pagos por gratificaciones, primas, compensaciones, recompensas u otros a extrabajadores derivados de jubilación en parcialidades, gravados"]
[null,103,"Ajuste a pagos que se realicen a extrabajadores que obtengan una jubilación en parcialidades derivados de la ejecución de una resolución judicial o de un laudo gravados"]
[null,104,"Ajuste a pagos que se realicen a extrabajadores que obtengan una jubilación en parcialidades derivados de la ejecución de una resolución judicial o de un laudo exentos"]
[null,105,"Ajuste a pagos que se realicen a extrabajadores que obtengan una jubilación en una sola exhibición derivados de la ejecución de una resolución judicial o de un laudo gravados"]
[null,106,"Ajuste a pagos que se realicen a extrabajadores que obtengan una jubilación en una sola exhibición derivados de la ejecución de una resolución judicial o de un laudo exentos"]
[null,107,"Ajuste al Subsidio Causado "]
[null,null,"Totales"]
[]
[null,"Catálogo de otros pagos"]
[null," c_TipoOtroPago","Descripción","Régimen 02","Régimen 03, 04 y 12","Régimen 13","Régimen 05, 06, 07, 08, 09, 10, 11"]
[null,"O001","Reintegro de ISR pagado en exceso (siempre que no haya sido enterado al SAT)."]
[null,"O002","Subsidio para el empleo (efectivamente entregado al trabajador)."]
[null,"O003","Viáticos (entregados al trabajador)."]
[null,"O004","Aplicación de saldo a favor por compensación anual."]
[null,"O005","Reintegro de ISR retenido en exceso de ejercicio anterior (siempre que no haya sido enterado al SAT)."]
[null,"O006","Alimentos en bienes (Servicios de comedor y comida) Art 94 último párrafo LISR."]
[null,"O007","ISR ajustado por subsidio."]
[null,"O008","Subsidio efectivamente entregado que no correspondía (Aplica sólo cuando haya ajuste al cierre de mes en relación con el Apéndice 7 de la guía de llenado de nómina)."]
[null,"O009","Reembolso de descuentos efectuados para el crédito de vivienda."]
[null,999,"Pagos distintos a los listados y que no deben considerarse como ingreso por sueldos, salarios o ingresos asimilados."]
[null,null,"Totales"]

{"sheet":"VISORN","index":11,"n_rows":54,"n_cols":19,"rows_kept":54,"cut":false,"hidden":true,"merged":[[41,2,41,5],[49,2,49,5],[50,2,50,5],[51,2,51,5],[42,2,42,5],[43,2,43,5],[44,2,44,5],[45,2,45,5],[46,2,46,5],[48,2,48,5],[36,2,36,5],[37,2,37,5],[38,2,38,5],[39,2,39,5],[40,2,40,5],[31,2,31,5],[32,2,32,5],[33,2,33,5],[34,2,34,5],[35,2,35,5],[26,2,26,5],[27,2,27,5],[28,2,28,5],[29,2,29,5],[30,2,30,5],[21,2,21,5],[22,2,22,5],[23,2,23,5],[24,2,24,5],[25,2,25,5],[16,2,16,5],[17,2,17,5],[18,2,18,5],[19,2,19,5],[20,2,20,5],[11,2,11,5],[12,2,12,5],[13,2,13,5],[14,2,14,5],[15,2,15,5],[6,1,6,5],[7,2,7,5],[8,2,8,5],[9,2,9,5],[10,2,10,5]]}
[]
[]
[]
[null,null,"Ejercicio"]
[]
[]
[null,"Concepto",null,null,null,null,"Total","Enero","Febrero","Marzo","Abril","Mayo","Junio","Julio","Agosto","Septiembre","Octubre","Noviembre","Diciembre"]
[]
[null,null,"Comprobantes emitidos "]
[]
[null,null,"Pagos totales por sueldos y salarios"]
[]
[null,null,"Pagos por sueldos salarios"]
[null,"(-)","Total ajustes sueldos y salarios (gravados y exentos)"]
[]
[null,null,"Pagos totales por sueldos y salarios exentos"]
[null,null,"Pagos por sueldos salarios exentos"]
[null,"(-)","Total ajustes sueldos y salarios exentos"]
[]
[null,null,"Pagos por aguinaldo exento"]
[null,null,"Pagos por aguinaldo exento"]
[null,"(-)","Total ajustes aguinaldo exento"]
[]
[null,null,"Pagos por prima vacacional exenta"]
[null,null,"Pagos por prima vacacional exento"]
[null,"(-)","Total ajustes prima vacacional exento"]
[]
[null,null,"Subsidio para el empleo que le correspondió a los trabajadores"]
[null,null,"Total del subsidio para el empleo que le correspondió a los trabajadores"]
[null,"(-)","Total de ajustes al subsidio para el empleo que le correspondió a los trabajadores"]
[]
[null,null,"Subsidio para el empleo pagado en efectivo a los trabajadores"]
[null,null,"Total del subsidio para el empleo pagado a los trabajadores"]
[null,"(-)","Total ajustes subsidio para el empleo pagado a los trabajadores"]
[]
[null,null,"ISR retenido"]
[null,null,"Impuesto sobre la renta retenido"]
[null,"(-)","Total ajustes del impuesto sobre la renta retenido"]
[null,"(+)","Total ISR Retenido de ejercicio anterior"]
[null,"(-)","Total aplicación de saldo a favor por compensación anual"]
[null,"(-)","Total reintegro de ISR retenido en exceso de ejercicio anterior"]
[]
[null,null,"Resumen pagos de nómina"]
[null,null,"Pagos de sueldos"]
[null,null,"Pagos exentos de sueldos"]
[null,null,"Pagos de asimilados a salarios"]
[]
[]
[null,null,"Pagos totales por asimilados a salarios"]
[null,null,"Número de CFDI emitidos"]
[null,null,"Pagos por asimilados a salarios"]
[null,"(-)","Total ajustes sueldos y salarios (gravados y exentos)"]
[]
[null,null,"Impuesto retenido asimilados a salarios"]

{"sheet":"CATALOGO","index":12,"n_rows":229,"n_cols":11,"rows_kept":229,"cut":false,"hidden":true,"merged":[]}
[]
[]
[]
[null,"c_RiesgoPuesto","Descripción","Fecha inicio de vigencia","Fecha fin de vigencia",null,null,"c_TipoPercepcion","Descripción","Fecha inicio de vigencia","Fecha fin de vigencia"]
[null,1,"Clase I","2017-01-01",null,null,null,1,"Sueldos, Salarios  Rayas y Jornales","2016-11-01"]
[null,2,"Clase II","2017-01-01",null,null,null,2,"Gratificación Anual (Aguinaldo)","2016-11-01"]
[null,3,"Clase III","2017-01-01",null,null,null,3,"Participación de los Trabajadores en las Utilidades PTU","2016-11-01"]
[null,4,"Clase IV","2017-01-01",null,null,null,4,"Reembolso de Gastos Médicos Dentales y Hospitalarios","2016-11-01"]
[null,5,"Clase V","2017-01-01",null,null,null,5,"Fondo de Ahorro","2016-11-01"]
[null,99,"No aplica","2017-08-13",null,null,null,6,"Caja de ahorro","2016-11-01"]
[null,null,null,null,null,null,null,9,"Contribuciones a Cargo del Trabajador Pagadas por el Patrón","2016-11-01"]
[null,null,null,null,null,null,null,10,"Premios por puntualidad","2016-11-01"]
[null,"c_TipoRegimen","Descripción","Fecha inicio de vigencia","Fecha fin de vigencia",null,null,11,"Prima de Seguro de vida","2016-11-01"]
[null,2,"Sueldos","2017-01-01",null,null,null,12,"Seguro de Gastos Médicos Mayores","2016-11-01"]
[null,3,"Jubilados","2017-01-01",null,null,null,13,"Cuotas Sindicales Pagadas por el Patrón","2016-11-01"]
[null,4,"Pensionados","2017-01-01",null,null,null,14,"Subsidios por incapacidad","2016-11-01"]
[null,5,"Asimilados Miembros Sociedades Cooperativas Produccion","2017-01-01",null,null,null,15,"Becas para trabajadores y/o hijos","2016-11-01"]
[null,6,"Asimilados Integrantes Sociedades Asociaciones Civiles","2017-01-01",null,null,null,19,"Horas extra","2016-11-01"]
[null,7,"Asimilados Miembros consejos","2017-01-01",null,null,null,20,"Prima dominical","2016-11-01"]
[null,8,"Asimilados comisionistas","2017-01-01",null,null,null,21,"Prima vacacional","2016-11-01"]
[null,9,"Asimilados Honorarios","2017-01-01",null,null,null,22,"Prima por antigüedad","2016-11-01"]
[null,10,"Asimilados acciones","2017-01-01",null,null,null,23,"Pagos por separación","2016-11-01"]
[null,11,"Asimilados otros","2017-01-01",null,null,null,24,"Seguro de retiro","2016-11-01"]
[null,12,"Jubilados o Pensionados","2017-03-27",null,null,null,25,"Indemnizaciones","2016-11-01"]
[null,13,"Indemnización o Separación","2018-10-15",null,null,null,26,"Reembolso por funeral","2016-11-01"]
[null,99,"Otro Regimen","2017-01-01",null,null,null,27,"Cuotas de seguridad social pagadas por el patrón","2016-11-01"]
[null,null,null,null,null,null,null,28,"Comisiones","2016-11-01"]
[null,null,null,null,null,null,null,29,"Vales de despensa","2016-11-01"]
[null,"c_TipoContrato","Descripción",null,null,null,null,30,"Vales de restaurante","2016-11-01"]
[null,1,"Contrato de trabajo por tiempo indeterminado",null,null,null,null,31,"Vales de gasolina","2016-11-01"]
[null,2,"Contrato de trabajo para obra determinada",null,null,null,null,32,"Vales de ropa","2016-11-01"]
[null,3,"Contrato de trabajo por tiempo determinado",null,null,null,null,33,"Ayuda para renta","2016-11-01"]
[null,4,"Contrato de trabajo por temporada",null,null,null,null,34,"Ayuda para artículos escolares","2016-11-01"]
[null,5,"Contrato de trabajo sujeto a prueba",null,null,null,null,35,"Ayuda para anteojos","2016-11-01"]
[null,6,"Contrato de trabajo con capacitación inicial",null,null,null,null,36,"Ayuda para transporte","2016-11-01"]
[null,7,"Modalidad de contratación por pago de hora laborada",null,null,null,null,37,"Ayuda para gastos de funeral","2016-11-01"]
[null,8,"Modalidad de trabajo por comisión laboral",null,null,null,null,38,"Otros ingresos por salarios","2016-11-01"]
[null,9,"Modalidades de contratación donde no existe relación de trabajo",null,null,null,null,39,"Jubilaciones, pensiones o haberes de retiro","2016-11-01"]
[null,10,"Jubilación, pensión, retiro.",null,null,null,null,44,"Jubilaciones, pensiones o haberes de retiro en parcialidades","2016-11-01"]
[null,99,"Otro contrato",null,null,null,null,45,"Ingresos en acciones o títulos valor que representan bienes","2016-11-01"]
[null,null,null,null,null,null,null," 046","Ingresos asimilados a salarios","2016-11-01"]
[null,null,null,null,null,null,null," 047","Alimentación","2016-11-01"]
[null,"c_PeriodicidadPago","Descripción","Fecha inicio de vigencia","Fecha fin de vigencia",null,null,48,"Habitación","2016-11-01"]
[null,1,"Diario","2016-11-01",null,null,null,49,"Premios por asistencia","2016-11-01"]
[null,2,"Semanal","2016-11-01",null,null,null,50,"Viáticos","2017-01-06"]
[null,3,"Catorcenal","2016-11-01",null,null,null,51,"Pagos por gratificaciones, primas, compensaciones, recompensas u otros a extrabajadores derivados de jubilación en parcialidades","2018-10-15"]
[null,4,"Quincenal","2016-11-01",null,null,null,52,"Pagos que se realicen a extrabajadores que obtengan una jubilación en parcialidades derivados de la ejecución de resoluciones judicial o de un laudo","2018-10-15"]
[null,5,"Mensual","2016-11-01",null,null,null,53,"Pagos que se realicen a extrabajadores que obtengan una jubilación en una sola exhibición derivados de la ejecución de resoluciones judicial o de un laudo","2018-10-15"]
[null,6,"Bimestral","2016-11-01"]
[null,7,"Unidad obra","2016-11-01"]
[null,8,"Comisión","2016-11-01",null,null,null," c_TipoOtroPago","Descripción","Fecha inicio de vigencia","Fecha fin de vigencia"]
[null,9,"Precio alzado","2016-11-01",null,null,null,1,"Reintegro de ISR pagado en exceso (siempre que no haya sido enterado al SAT).","2017-01-01"]
[null,10,"Decenal","2017-01-19",null,null,null,2,"Subsidio para el empleo (efectivamente entregado al trabajador).","2017-01-01"]
[null,99,"Otra Periodicidad","2016-11-01",null,null,null,3,"Viáticos (entregados al trabajador).","2017-01-01"]
[null,null,null,null,null,null,null,4,"Aplicación de saldo a favor por compensación anual.","2017-01-01"]
[null,null,null,null,null,null,null,5,"Reintegro de ISR retenido en exceso de ejercicio anterior (siempre que no haya sido enterado al SAT).","2017-12-05"]
[null,"c_TipoIncapacidad","Descripción",null,null,null,null,999,"Pagos distintos a los listados y que no deben considerarse como ingreso por sueldos, salarios o ingresos asimilados.","2017-01-01"]
[null,1,"Riesgo de trabajo."]
[null,2,"Enfermedad en general."]
[null,3,"Maternidad.",null,null,null,null,"c_TipoDeduccion","Descripción","Fecha inicio de vigencia","Fecha fin de vigencia"]
[null,null,null,null,null,null,null,1,"Seguridad social","2016-11-01"]
[null,null,null,null,null,null,null,2,"ISR","2016-11-01"]
[null,"c_TipoJornada","Descripción",null,null,null,null,3,"Aportaciones a retiro, cesantía en edad avanzada y vejez.","2016-11-01"]
[null,1,"Diurna",null,null,null,null,4,"Otros","2016-11-01"]
[null,2,"Nocturna",null,null,null,null,5,"Aportaciones a Fondo de vivienda","2016-11-01"]
[null,3,"Mixta",null,null,null,null,6,"Descuento por incapacidad","2016-11-01"]
[null,4,"Por hora",null,null,null,null,7,"Pensión alimenticia","2016-11-01"]
[null,5,"Reducida",null,null,null,null,8,"Renta","2016-11-01"]
[null,6,"Continuada",null,null,null,null,9,"Préstamos provenientes del Fondo Nacional de la Vivienda para los Trabajadores","2016-11-01"]
[null,7,"Partida",null,null,null,null,10,"Pago por crédito de vivienda","2016-11-01"]
[null,8,"Por turnos",null,null,null,null,11,"Pago de abonos INFONACOT","2016-11-01"]
[null,99,"Otra Jornada",null,null,null,null,12,"Anticipo de salarios","2016-11-01"]
[null,null,null,null,null,null,null,13,"Pagos hechos con exceso al trabajador","2016-11-01"]
[null,null,null,null,null,null,null,14,"Errores","2016-11-01"]
[null,"c_Estado","c_Pais","Nombre del estado",null,null,null,15,"Pérdidas","2016-11-01"]
[null,"AGU","MEX","Aguascalientes",null,null,null,16,"Averías","2016-11-01"]
[null,"BCN","MEX","Baja California",null,null,null,17,"Adquisición de artículos producidos por la empresa o establecimiento","2016-11-01"]
[null,"BCS","MEX","Baja California Sur",null,null,null,18,"Cuotas para la constitución y fomento de sociedades cooperativas y de cajas de ahorro","2016-11-01"]
[null,"CAM","MEX","Campeche",null,null,null,19,"Cuotas sindicales","2016-11-01"]
[null,"CHP","MEX","Chiapas",null,null,null,20,"Ausencia (Ausentismo)","2016-11-01"]
[null,"CHH","MEX","Chihuahua",null,null,null,21,"Cuotas obrero patronales","2016-11-01"]
[null,"COA","MEX","Coahuila",null,null,null,22,"Impuestos Locales","2016-11-01"]
[null,"COL","MEX","Colima",null,null,null,23,"Aportaciones voluntarias","2016-11-01"]
[null,"DIF","MEX","Ciudad de México",null,null,null,24,"Ajuste en Gratificación Anual (Aguinaldo) Exento","2017-01-06"]
[null,"DUR","MEX","Durango",null,null,null,25,"Ajuste en Gratificación Anual (Aguinaldo) Gravado","2017-01-06"]
[null,"GUA","MEX","Guanajuato",null,null,null,26,"Ajuste en Participación de los Trabajadores en las Utilidades PTU Exento","2017-01-06"]
[null,"GRO","MEX","Guerrero",null,null,null,27,"Ajuste en Participación de los Trabajadores en las Utilidades PTU Gravado","2017-01-06"]
[null,"HID","MEX","Hidalgo",null,null,null,28,"Ajuste en Reembolso de Gastos Médicos Dentales y Hospitalarios Exento","2017-01-06"]
[null,"JAL","MEX","Jalisco",null,null,null,29,"Ajuste en Fondo de ahorro Exento","2017-01-06"]
[null,"MEX","MEX","Estado de México",null,null,null,30,"Ajuste en Caja de ahorro Exento","2017-01-06"]
[null,"MIC","MEX","Michoacán",null,null,null,31,"Ajuste en Contribuciones a Cargo del Trabajador Pagadas por el Patrón Exento","2017-01-06"]
[null,"MOR","MEX","Morelos",null,null,null,32,"Ajuste en Premios por puntualidad Gravado","2017-01-06"]
[null,"NAY","MEX","Nayarit",null,null,null,33,"Ajuste en Prima de Seguro de vida Exento","2017-01-06"]
[null,"NLE","MEX","Nuevo León",null,null,null,34,"Ajuste en Seguro de Gastos Médicos Mayores Exento","2017-01-06"]
[null,"OAX","MEX","Oaxaca",null,null,null,35,"Ajuste en Cuotas Sindicales Pagadas por el Patrón Exento","2017-01-06"]
[null,"PUE","MEX","Puebla",null,null,null,36,"Ajuste en Subsidios por incapacidad Exento","2017-01-06"]
[null,"QUE","MEX","Querétaro",null,null,null,37,"Ajuste en Becas para trabajadores y/o hijos Exento","2017-01-06"]
[null,"ROO","MEX","Quintana Roo",null,null,null,38,"Ajuste en Horas extra Exento","2017-01-06"]
[null,"SLP","MEX","San Luis Potosí",null,null,null,39,"Ajuste en Horas extra Gravado","2017-01-06"]
[null,"SIN","MEX","Sinaloa",null,null,null,40,"Ajuste en Prima dominical Exento","2017-01-06"]
[null,"SON","MEX","Sonora",null,null,null,41,"Ajuste en Prima dominical Gravado","2017-01-06"]
[null,"TAB","MEX","Tabasco",null,null,null,42,"Ajuste en Prima vacacional Exento","2017-01-06"]
[null,"TAM","MEX","Tamaulipas",null,null,null,43,"Ajuste en Prima vacacional Gravado","2017-01-06"]
[null,"TLA","MEX","Tlaxcala",null,null,null,44,"Ajuste en Prima por antigüedad Exento","2017-01-06"]
[null,"VER","MEX","Veracruz",null,null,null,45,"Ajuste en Prima por antigüedad Gravado","2017-01-06"]
[null,"YUC","MEX","Yucatán",null,null,null,46,"Ajuste en Pagos por separación Exento","2017-01-06"]
[null,"ZAC","MEX","Zacatecas",null,null,null,47,"Ajuste en Pagos por separación Gravado","2017-01-06"]
[null,"AL","USA","Alabama",null,null,null,48,"Ajuste en Seguro de retiro Exento","2017-01-06"]
[null,"AK","USA","Alaska",null,null,null,49,"Ajuste en Indemnizaciones Exento","2017-01-06"]
[null,"AZ","USA","Arizona",null,null,null,50,"Ajuste en Indemnizaciones Gravado","2017-01-06"]
[null,"AR","USA","Arkansas",null,null,null,51,"Ajuste en Reembolso por funeral Exento","2017-01-06"]
[null,"CA","USA","California",null,null,null,52,"Ajuste en Cuotas de seguridad social pagadas por el patrón Exento","2017-01-06"]
[null,"NC","USA","Carolina del Norte",null,null,null,53,"Ajuste en Comisiones Gravado","2017-01-06"]
[null,"SC","USA","Carolina del Sur",null,null,null,54,"Ajuste en Vales de despensa Exento","2017-01-06"]
[null,"CO","USA","Colorado",null,null,null,55,"Ajuste en Vales de restaurante Exento","2017-01-06"]
[null,"CT","USA","Connecticut",null,null,null,56,"Ajuste en Vales de gasolina Exento","2017-01-06"]
[null,"ND","USA","Dakota del Norte",null,null,null,57,"Ajuste en Vales de ropa Exento","2017-01-06"]
[null,"SD","USA","Dakota del Sur",null,null,null,58,"Ajuste en Ayuda para renta Exento","2017-01-06"]
[null,"DE","USA","Delaware",null,null,null,59,"Ajuste en Ayuda para artículos escolares Exento","2017-01-06"]
[null,"FL","USA","Florida",null,null,null,60,"Ajuste en Ayuda para anteojos Exento","2017-01-06"]
[null,"GA","USA","Georgia",null,null,null,61,"Ajuste en Ayuda para transporte Exento","2017-01-06"]
[null,"HI","USA","Hawái",null,null,null,62,"Ajuste en Ayuda para gastos de funeral Exento","2017-01-06"]
[null,"ID","USA","Idaho",null,null,null,63,"Ajuste en Otros ingresos por salarios Exento","2017-01-06"]
[null,"IL","USA","Illinois",null,null,null,64,"Ajuste en Otros ingresos por salarios Gravado","2017-01-06"]
[null,"IN","USA","Indiana",null,null,null,65,"Ajuste en Jubilaciones, pensiones o haberes de retiro en una sola exhibición Exento ","2018-10-15"]
[null,"IA","USA","Iowa",null,null,null,66,"Ajuste en Jubilaciones, pensiones o haberes de retiro en una sola exhibición Gravado","2018-10-15"]
[null,"KS","USA","Kansas",null,null,null,67,"Ajuste en Pagos por separación Acumulable","2017-01-06"]
[null,"KY","USA","Kentucky",null,null,null,68,"Ajuste en Pagos por separación No acumulable","2017-01-06"]
[null,"LA","USA","Luisiana",null,null,null,69,"Ajuste en Jubilaciones, pensiones o haberes de retiro en parcialidades Exento","2018-10-15"]
[null,"ME","USA","Maine",null,null,null,70,"Ajuste en Jubilaciones, pensiones o haberes de retiro en parcialidades Gravado","2018-10-15"]
[null,"MD","USA","Maryland",null,null,null,71,"Ajuste en Subsidio para el empleo (efectivamente entregado al trabajador)","2017-01-06"]
[null,"MA","USA","Massachusetts",null,null,null,72,"Ajuste en Ingresos en acciones o títulos valor que representan bienes Exento","2017-01-06","2018-10-14"]
[null,"MI","USA","Míchigan",null,null,null,73,"Ajuste en Ingresos en acciones o títulos valor que representan bienes Gravado","2017-01-06"]
[null,"MN","USA","Minnesota",null,null,null,74,"Ajuste en Alimentación Exento","2017-01-06"]
[null,"MS","USA","Misisipi",null,null,null,75,"Ajuste en Alimentación Gravado","2017-01-06"]
[null,"MO","USA","Misuri",null,null,null,76,"Ajuste en Habitación Exento","2017-01-06"]
[null,"MT","USA","Montana",null,null,null,77,"Ajuste en Habitación Gravado","2017-01-06"]
[null,"NE","USA","Nebraska",null,null,null,78,"Ajuste en Premios por asistencia","2017-01-06"]
[null,"NV","USA","Nevada",null,null,null,79,"Ajuste en Pagos distintos a los listados y que no deben considerarse como ingreso por sueldos, salarios o ingresos asimilados.","2017-01-06"]
[null,"NJ","USA","Nueva Jersey",null,null,null,80,"Ajuste en Viáticos gravados","2017-01-06"]
[null,"NY","USA","Nueva York",null,null,null,81,"Ajuste en Viáticos (entregados al trabajador)","2017-01-06"]
[null,"NH","USA","Nuevo Hampshire",null,null,null,"082","Ajuste en Fondo de ahorro Gravado","2017-01-06"]
[null,"NM","USA","Nuevo México",null,null,null,"083","Ajuste en Caja de ahorro Gravado","2017-01-06"]
[null,"OH","USA","Ohio",null,null,null,"084","Ajuste en Prima de Seguro de vida Gravado","2017-01-06"]
[null,"OK","USA","Oklahoma",null,null,null,"085","Ajuste en Seguro de Gastos Médicos Mayores Gravado","2017-01-06"]
[null,"OR","USA","Oregón",null,null,null,"086","Ajuste en Subsidios por incapacidad Gravado","2017-01-06"]
[null,"PA","USA","Pensilvania",null,null,null,"087","Ajuste en Becas para trabajadores y/o hijos Gravado","2017-01-06"]
[null,"RI","USA","Rhode Island",null,null,null,"088","Ajuste en Seguro de retiro Gravado","2017-01-06"]
[null,"TN","USA","Tennessee",null,null,null,"089","Ajuste en Vales de despensa Gravado","2017-01-06"]
[null,"TX","USA","Texas",null,null,null,"090","Ajuste en Vales de restaurante Gravado","2017-01-06"]
[null,"UT","USA","Utah",null,null,null,"091","Ajuste en Vales de gasolina Gravado","2017-01-06"]
[null,"VT","USA","Vermont",null,null,null,"092","Ajuste en Vales de ropa Gravado","2017-01-06"]
[null,"VA","USA","Virginia",null,null,null,"093","Ajuste en Ayuda para renta Gravado","2017-01-06"]
[null,"WV","USA","Virginia Occidental",null,null,null,"094","Ajuste en Ayuda para artículos escolares Gravado","2017-01-06"]
[null,"WA","USA","Washington",null,null,null,"095","Ajuste en Ayuda para anteojos Gravado","2017-01-06"]
[null,"WI","USA","Wisconsin",null,null,null,"096","Ajuste en Ayuda para transporte Gravado","2017-01-06"]
[null,"WY","USA","Wyoming",null,null,null,"097","Ajuste en Ayuda para gastos de funeral Gravado","2017-01-06"]
[null,"ON","CAN","Ontario ",null,null,null,"098","Ajuste a ingresos asimilados a salarios gravados","2017-01-06"]
[null,"QC","CAN"," Quebec ",null,null,null,"099","Ajuste a ingresos por sueldos y salarios gravados","2017-01-06"]
[null,"NS","CAN"," Nueva Escocia",null,null,null,100,"Ajuste en Viáticos exentos","2017-01-06"]
[null,"NB","CAN","Nuevo Brunswick ",null,null,null,101,"ISR Retenido de ejercicio anterior","2017-12-05"]
[null,"MB","CAN"," Manitoba",null,null,null,102,"Ajuste a pagos por gratificaciones, primas, compensaciones, recompensas u otros a extrabajadores derivados de jubilación en parcialidades, gravados","2018-10-15"]
[null,"BC","CAN"," Columbia Británica",null,null,null,103,"Ajuste a pagos que se realicen a extrabajadores que obtengan una jubilación en parcialidades derivados de la ejecución de una resolución judicial o de un laudo gravados","2018-10-15"]
[null,"PE","CAN"," Isla del Príncipe Eduardo",null,null,null,104,"Ajuste a pagos que se realicen a extrabajadores que obtengan una jubilación en parcialidades derivados de la ejecución de una resolución judicial o de un laudo exentos","2018-10-15"]
[null,"SK","CAN"," Saskatchewan",null,null,null,105,"Ajuste a pagos que se realicen a extrabajadores que obtengan una jubilación en una sola exhibición derivados de la ejecución de una resolución judicial o de un laudo gravados","2018-10-15"]
[null,"AB","CAN"," Alberta",null,null,null,106,"Ajuste a pagos que se realicen a extrabajadores que obtengan una jubilación en una sola exhibición derivados de la ejecución de una resolución judicial o de un laudo exentos","2018-10-15"]
[null,"NL","CAN"," Terranova y Labrador"]
[null,"NT","CAN"," Territorios del Noroeste"]
[null,"YT","CAN"," Yukón"]
[null,"UN","CAN"," Nunavut"]
[]
[]
[]
[]
[]
[]
[]
[]
[]
[]
[]
[]
[]
[]
[null,"c_TipoPercepcion","Descripción","Gravado","Exento","Régimen","Régimen consula","c_TipoRegimen","Descripción"]
[null,1,"Sueldos, Salarios  Rayas y Jornales","a","r",2,{"$f":"F186-B186","v":1},2,"Sueldos (Incluye ingresos señalados en la fracción I del artículo 94 de LISR)",2]
[null,2,"Gratificación Anual (Aguinaldo)","a","a",2,0,3,"Jubilados",3412]
[null,3,"Participación de los Trabajadores en las Utilidades PTU","a","a",2,-1,4,"Pensionados",3412]
[null,4,"Reembolso de Gastos Médicos Dentales y Hospitalarios","a","a",2,-2,5,"Asimilados Miembros Sociedades Cooperativas Produccion",567891011]
[null,5,"Fondo de Ahorro","a","a",2,-3,6,"Asimilados Integrantes Sociedades Asociaciones Civiles",567891011]
[null,6,"Caja de ahorro","a","a",2,-4,7,"Asimilados Miembros consejos",567891011]
[null,9,"Contribuciones a Cargo del Trabajador Pagadas por el Patrón","a","r",2,-7,8,"Asimilados comisionistas",567891011]
[null,10,"Premios por puntualidad","a","r",2,-8,9,"Asimilados Honorarios",567891011]
[null,11,"Prima de Seguro de vida","a","a",2,-9,10,"Asimilados acciones",567891011]
[null,12,"Seguro de Gastos Médicos Mayores","a","a",2,-10,11,"Asimilados otros",567891011]
[null,13,"Cuotas Sindicales Pagadas por el Patrón","a","a",2,-11,12,"Jubilados o Pensionados",3412]
[null,14,"Subsidios por incapacidad","a","a",2,-12,13,"Indemnización o Separación",13]
[null,15,"Becas para trabajadores y/o hijos","a","a",2,-13,99,"Otro Regimen",99]
[null,19,"Horas extra","a","a",2,-17]
[null,20,"Prima dominical","a","a",2,-18]
[null,21,"Prima vacacional","a","a",2,-19]
[null,24,"Seguro de retiro","a","a",2,-22]
[null,26,"Reembolso por funeral","a","a",2,-24]
[null,27,"Cuotas de seguridad social pagadas por el patrón","r","a",2,-25]
[null,28,"Comisiones","a","r",2,-26]
[null,29,"Vales de despensa","a","a",2,-27]
[null,30,"Vales de restaurante","a","a",2,-28]
[null,31,"Vales de gasolina","a","a",2,-29]
[null,32,"Vales de ropa","a","a",2,-30]
[null,33,"Ayuda para renta","a","a",2,-31]
[null,34,"Ayuda para artículos escolares","a","a",2,-32]
[null,35,"Ayuda para anteojos","a","a",2,-33]
[null,36,"Ayuda para transporte","a","a",2,-34]
[null,37,"Ayuda para gastos de funeral","a","a",2,-35]
[null,38,"Otros ingresos por salarios","a","a",2,-36]
[null,47,"Alimentación diferentes a los establecidos en el Art 94 último párrafo LISR","a","a",2,-45]
[null,48,"Habitación","a","a",2,-46]
[null,49,"Premios por asistencia","a","r",2,-47]
[null,50,"Viáticos","a","a",2,-48]
[null,39,"Jubilaciones, pensiones o haberes de retiro","a","a",3412,3373]
[null,44,"Jubilaciones, pensiones o haberes de retiro en parcialidades","a","a",3412,3368]
[null,51,"Pagos por gratificaciones, primas, compensaciones, recompensas u otros a extrabajadores derivados de jubilación en parcialidades","a","r",3412,3361]
[null,52,"Pagos que se realicen a extrabajadores que obtengan una jubilación en parcialidades derivados de la ejecución de resoluciones judicial o de un laudo","a","a",3412,3360]
[null,53,"Pagos que se realicen a extrabajadores que obtengan una jubilación en una sola exhibición derivados de la ejecución de resoluciones judicial o de un laudo","a","a",3412,3359]
[null,22,"Prima por antigüedad","a","a",13,-9]
[null,23,"Pagos por separación","a","a",13,-10]
[null,25,"Indemnizaciones","a","a",13,-12]
[null,45,"Ingresos en acciones o títulos valor que representan bienes","a","r",567891011,567890966]
[null,46,"Ingresos asimilados a salarios","a","r",567891011,567890965]

{"sheet":"INPC","index":13,"n_rows":60,"n_cols":14,"rows_kept":60,"cut":false,"hidden":true,"merged":[]}
[]
[]
[]
[null,null,"ENERO","FEBRERO","MARZO","ABRIL","MAYO","JUNIO","JULIO","AGOSTO","SEPTIEMBRE","OCTUBRE","NOVIEMBRE","DICIEMBRE"]
[null,2024,133.55500000000001,133.68100000000001,134.065,134.33600000000001,134.08699999999999,134.59399999999999,136.00299999999999,136.00299999999999,136.08000000000001,136.828]
[null,2023,127.336,128.04599999999999,128.38900000000001,128.363,128.084,128.214,128.83199999999999,129.54499999999999,130.12,130.60900000000001,131.44499999999999,132.37299999999999]
[null,2022,118.002,118.98099999999999,120.15900000000001,120.809,121.02200000000001,122.044,122.94799999999999,123.803,124.571,125.276,125.997,126.47799999999999]
[null,2021,110.21,110.907,111.824,112.19,112.419,113.018,113.682,113.899,114.601,115.56100000000001,116.884,117.30800000000001]
[null,2020,106.447,106.889,106.83799999999999,105.755,106.16200000000001,106.74299999999999,107.444,107.867,108.114,108.774,108.85599999999999,109.271]
[null,2019,103.108,103.07899999999999,103.476,103.53100000000001,103.233,103.29900000000001,103.687,103.67,103.94199999999999,104.503,105.346,105.934]
[null,2018,98.794999699501005,99.171374481640001,99.492156980588007,99.154847046097004,98.994080173086999,99.376464931786998,99.909099104513999,100.492,100.917,101.44,102.303,103.02]
[null,2017,93.603882444858996,94.144780335356998,94.722489332292,94.838932628162993,94.725494320571997,94.963639641805003,95.322735741331002,95.793767654305995,96.093515235290994,96.698269126750006,97.695173988822006,98.272882985755999]
[null,2016,89.386381393112998,89.777781116653998,89.910000600998004,89.625277961416003,89.225614520102994,89.324027886291006,89.556914478034003,89.809333493598999,90.357743854798997,90.906154215998995,91.616833944348002,92.039034797764003]
[null,2015,87.110102770598999,87.275377126028999,87.630716990203993,87.403840375022995,86.967365827272999,87.113107758880005,87.240819760803006,87.424875292986002,87.752419015566005,88.203918504718004,88.685467876675006,89.046817717411002]
[null,2014,84.519051625699007,84.733157040687999,84.965292385360002,84.806779253561004,84.535579061242004,84.682072239918,84.914958831660996,85.219965142136004,85.596339924274005,86.069625578460005,86.763777871266001,87.188983712964003]
[null,2013,80.892782018150001,81.290942965322003,81.887433139010994,81.941522928061005,81.668820241600997,81.619237934972006,81.592193040447,81.824328385119003,82.132339683875003,82.522988160346003,83.292265160165996,83.770058296773001]
[null,2012,78.343049462107004,78.502313840976001,78.547388665184002,78.300979626179995,78.053819340104994,78.413666686699997,78.853897469800003,79.090540296892996,79.439118937436007,79.841036119959,80.383436504597995,80.568243283851004]
[null,2011,75.295991345633993,75.578460244005001,75.723450928540998,75.717440951979995,75.159264378868997,75.155508143518006,75.516106737184003,75.635555021334994,75.821113047658997,76.332712302421996,77.158332832501998,77.792385359696993]
[null,2010,72.552045976151007,72.971670511062001,73.489725492434005,73.255564640854004,72.793977652452,72.771183233271003,72.929190002590005,73.131749500306,73.515110186520999,73.968926350203006,74.561581248891997,74.930954450610002]
[null,2009,69.456149407474001,69.609493681960004,70.009950182560999,70.254990188749005,70.050358471107998,70.179354161469007,70.370516449595002,70.538884318540994,70.892715870817995,71.107190633106001,71.476045779843005,71.771855174205001]
[null,2008,65.350563680104003,65.544834298119,66.019890716036002,66.170126660633997,66.098635073205003,66.372168103369006,66.742059360067998,67.127492266209003,67.584934814760004,68.045485693200007,68.818941780386993,69.295552363249001]
[null,2007,63.016207934043997,63.192346627710997,63.329113142792998,63.291295129151997,62.982534360255002,63.058170387535,63.326004812904003,63.583996193627002,64.077702590875006,64.327405091895997,64.781221255576995,65.049055680945997]
[null,2006,60.603625885795999,60.696357727462001,60.772511809722999,60.861617266518998,60.590674511262002,60.642998064380002,60.809293713400997,61.119608647242003,61.736612130056002,62.006518775350997,62.331857303652001,62.692423570686003]
[null,2005,58.309160373300998,58.503430991316002,58.767120976834001,58.976415189308,58.828251464635997,58.771783471665998,59.001799883395002,59.072255360862002,59.309006487348,59.454579937113998,59.882493351727,60.250312388501001]
[null,2004,55.774317349450001,56.107944757452998,56.298070935616998,56.383031952562,56.241602942646999,56.331744509406001,56.479390179097003,56.828041181560003,57.297917049664001,57.694747165395,58.186899397696997,58.307088153376]
[null,2003,53.525440675315998,53.674122454969996,54.012930412785998,54.105144199469997,53.930559670748998,53.975112399147001,54.053338701333999,54.215489910502001,54.538238163896999,54.738207386707003,55.192541605370003,55.429810786837997]
[null,2002,50.900472009715998,50.867749849081001,51.127948444495999,51.407234972562001,51.511429231397997,51.762586176958997,51.911181353361997,52.108560301263999,52.421983564994001,52.653036086686001,53.078877281373998,53.309929803065003]
[null,2001,48.575476247933999,48.543328159565,48.850887781723998,49.097308632382997,49.209970463624998,49.326363767191999,49.198201964029998,49.489687547186001,49.950381149771999,50.176135367754,50.365148908872001,50.434898785092997]
[null,2000,44.930830116377997,45.329380314521998,45.580680782035003,45.840018271642002,46.011379073729003,46.283920241006001,46.464466209717997,46.719785188278003,47.061071604014998,47.385135825852998,47.790287862832997,48.307671180741004]
[null,1999,40.469770280539997,41.013642812363997,41.394683783067002,41.774576609237002,42.02587707675,42.302006204759003,42.581579771548,42.821255256237997,43.235018392756999,43.508851226518999,43.895776447019998,44.335516388565999]
[null,1998,34.003924110859998,34.599237843852997,35.004533397604,35.332042063402,35.613481363761998,36.034420411382001,36.381878110460001,36.731632103784001,37.327376387091,37.862268927258,38.532786225594002,39.472974324694]
[null,1997,29.498886028859999,29.994598091509001,30.367889073663001,30.695971811728999,30.976119445603,31.250956912307998,31.523211040861,31.803502196688001,32.199612588994,32.456940823078,32.820042010843999,33.279874507621003]
[null,1996,23.329753761294,23.874262028762001,24.399825880352999,25.093449617204001,25.550842302962,25.966901728547001,26.336030688063001,26.686071714930002,27.112751490396999,27.451167539621,27.867083448433998,28.759336453704002]
[null,1995,15.376990944299999,16.028707348708998,16.973617202949999,18.326133255310999,19.092090190992,19.698024268685,20.099588355293999,20.432981265710001,20.855642530130002,21.284762116614999,21.809608384348,22.520167271192001]
[null,1994,13.950374980567,14.022124062044,14.094224762979,14.163251304932,14.231682244252999,14.302894568965,14.366326769868,14.433286645443999,14.535936644548,14.612245304055,14.690360856448001,14.819204368158999]
[null,1993,12.977319763866999,13.083345310799,13.159593689429,13.235480403514,13.311137489729999,13.385797123244,13.450123440421001,13.522112194855,13.622260672231,13.677973025024,13.738302356338,13.843054897126001]
[null,1992,11.657778465389001,11.795900435066001,11.915947720289999,12.022171319641,12.101437891771999,12.183345192186,12.260272414519999,12.335592231401,12.442896524527001,12.532493537792,12.636620340687999,12.816553481441]
[null,1991,9.8838798948009998,10.056424721909,10.199839643789,10.306687551197999,10.407441671111,10.516647583476001,10.609584269261999,10.683422977312,10.789850374312,10.915342738584,11.186374096785,11.449679866825999]
[null,1990,7.7760373017279996,7.9521198537759998,8.0923099196599999,8.2154715493909993,8.3588376756719995,8.5429385894719996,8.6987348337260002,8.8469504416049993,8.9730613687050003,9.102059887647,9.3437231026759999,9.6382139538609994]
[null,1989,6.349023792963,6.4351835425089998,6.5049448988289997,6.6022244447040004,6.6930987691499997,6.7743846367099998,6.8421482176049997,6.9073327757470002,6.9733927950019998,7.0765250152229999,7.175855437159,7.4180295787319999]
[null,1988,4.7182459356499997,5.1117830400719999,5.3735474255859996,5.538940736801,5.6461086882159996,5.7612921365389997,5.857456543164,5.9113433427300004,5.9451390220790001,5.9904864830819999,6.0706543465480003,6.1973163857179996]
[null,1987,1.7044012927959999,1.8273863901109999,1.948152699385,2.1186064597269998,2.2783250588419999,2.443145732803,2.641021526516,2.8568715486410001,3.0450813948030002,3.2988446335320001,3.560511422667,4.0863924586009999]
[null,1986,0.83409223138499999,0.87117447743800003,0.91166671679400002,0.95926311145800003,1.0125700987090001,1.0775666443359999,1.131332892509,1.221531243274,1.2948116693730001,1.3688240294530001,1.4613043243420001,1.576734625864]
[null,1985,0.50271144651599997,0.52359622178499998,0.54388539960299997,0.56062106216600005,0.57390224086300001,0.58827559343199998,0.60876282367000001,0.63537685186600001,0.66075231421400005,0.685852223117,0.71749512498900003,0.76634013058899997]
[null,1984,0.31272771793199999,0.32923231761100002,0.34330428133399998,0.35815554998400001,0.370031685863,0.38342337604799998,0.39599270575599999,0.40724883861299999,0.419380437765,0.434033653997,0.44892941320899998,0.46799581549399999]
[null,1983,0.18035508617400001,0.190033959196,0.19923204611199999,0.211845861202,0.22103390303199999,0.22940388942199999,0.240746133379,0.25009060709100001,0.25778749500499998,0.26634117851099998,0.28198323736800002,0.29404738058000002]
[null,1982,8.5865535761999998E-2,8.9239653757999998E-2,9.2498950048999995E-2,9.7512043770000001E-2,0.10299300848700001,0.107954431404,0.11351720218399999,0.126255878884,0.132995499623,0.13989011723100001,0.14696269708699999,0.16265641638700001]
[null,1981,6.5615113636999997E-2,6.7226824128999996E-2,6.8664872229000001E-2,7.0213436998999998E-2,7.1275470431999999E-2,7.2271488120999997E-2,7.3544494264999996E-2,7.5060048571000001E-2,7.6456481315000005E-2,7.8152867892999994E-2,7.9656936920999996E-2,8.1801099141000005E-2]
[null,1980,5.1342222290000003E-2,5.2529117335E-2,5.3609811108999997E-2,5.4546982931999999E-2,5.5436799348999997E-2,5.6536148283E-2,5.8114848311E-2,5.9318963503999997E-2,5.9977717037999999E-2,6.0886183433999999E-2,6.1942481999000001E-2,6.3567107600999997E-2]
[null,1979,4.2237421534000001E-2,4.2844504263000002E-2,4.3425751590999997E-2,4.3814686550000002E-2,4.4388763996000002E-2,4.4881030200999997E-2,4.5424962027999997E-2,4.6112415807999997E-2,4.6677878000999998E-2,4.7493063416999999E-2,4.8104451184000002E-2,4.8955511907000003E-2]
[null,1978,3.5892480982999998E-2,3.6407712565E-2,3.6786597256000003E-2,3.7195627565999999E-2,3.7560162134E-2,3.8076828728000001E-2,3.8722661971000001E-2,3.9108726904000003E-2,3.9555067534000003E-2,4.0034418628000001E-2,4.0446313781999997E-2,4.0789323166000001E-2]
[null,1977,3.0026891524999998E-2,3.0689944915999998E-2,3.1225266668999999E-2,3.1697442701999999E-2,3.1975866170999998E-2,3.2367671153000002E-2,3.2733645913999999E-2,3.3405309378E-2,3.3998041984999998E-2,3.4257810293999998E-2,3.4632389947999997E-2,3.5111741042000003E-2]
[null,1976,2.3318846237999999E-2,2.3755141782E-2,2.3987639676999999E-2,2.4155556839E-2,2.4324909012E-2,2.4422500209000001E-2,2.4629167883E-2,2.4864535803E-2,2.5712731682000001E-2,2.7160830048999999E-2,2.8387910620000002E-2,2.9099759608E-2]
[null,1975,2.0815889497999999E-2,2.0930700843E-2,2.1062737517E-2,2.1240699762999998E-2,2.1524868462999999E-2,2.1890838042999999E-2,2.2065930264999999E-2,2.2256812803999999E-2,2.2418984735000001E-2,2.2533801260999999E-2,2.2691673336000001E-2,2.2876810644E-2]
[null,1974,1.7652744211999999E-2,1.8051724256000001E-2,1.8190941171000001E-2,1.8437789190000001E-2,1.8582746154000001E-2,1.8766448450000001E-2,1.9037696858000001E-2,1.9238624482000002E-2,1.9456772255000001E-2,1.9842832008000001E-2,2.0393944077000001E-2,2.0553251163999999E-2]
[null,1973,1.4245620933999999E-2,1.4363307483E-2,1.4489604107000001E-2,1.4719231978E-2,1.4875669039999999E-2,1.4997655447E-2,1.5382285367999999E-2,1.5629138567E-2,1.6000848195999999E-2,1.6206080857E-2,1.640557347E-2,1.7042791458000001E-2]
[null,1972,1.3361549746E-2,1.3403170284E-2,1.3476366272000001E-2,1.3561042358E-2,1.3588307592E-2,1.3688768814E-2,1.3740439618E-2,1.3830855754000001E-2,1.3894001475000001E-2,1.3904046562E-2,1.3994462698000001E-2,1.4041828465E-2]
[null,1971,1.2798957579E-2,1.2852058214E-2,1.2900853812999999E-2,1.2966874739E-2,1.2994145154000001E-2,1.3052985838000001E-2,1.3042940752E-2,1.3162057134E-2,1.3205112683E-2,1.3218032974E-2,1.3239558158999999E-2,1.3302709062E-2]
[null,1970,1.2197614896999999E-2,1.2196179885E-2,1.2232060373E-2,1.2247845508E-2,1.2273680909999999E-2,1.2348311911E-2,1.2408587608E-2,1.2465993280999999E-2,1.249613372E-2,1.2500438756E-2,1.2567894695E-2,1.2674095967000001E-2]
[null,1969,1.1594842385E-2,1.1636457742000001E-2,1.1647943020999999E-2,1.1679513290999999E-2,1.1679513290999999E-2,1.1721133829E-2,1.176562439E-2,1.1778544681E-2,1.1889050989E-2,1.2013912601E-2,1.2015347613000001E-2,1.2105763748999999E-2]

{"sheet":"c_Estado","index":14,"n_rows":100,"n_cols":6,"rows_kept":100,"cut":false,"hidden":true,"merged":[[0,0,0,2]]}
["Catálogo de estados. "]
["Versión CFDI","Versión catálogo","Revisión catálogo","Fecha publicación de catálogo","Fecha  inicio de vigencia del catálogo","Fecha fin de vigencia del catálogo"]
[4,1,0,0,"2022-01-01"]
[]
["c_Estado","c_Pais","Nombre del estado","Fecha inicio de vigencia","Fecha fin de vigencia"]
["AGU","MEX","Aguascalientes","2022-01-01"]
["BCN","MEX","Baja California","2022-01-01"]
["BCS","MEX","Baja California Sur","2022-01-01"]
["CAM","MEX","Campeche","2022-01-01"]
["CHP","MEX","Chiapas","2022-01-01"]
["CHH","MEX","Chihuahua","2022-01-01"]
["COA","MEX","Coahuila","2022-01-01"]
["COL","MEX","Colima","2022-01-01"]
["CMX","MEX","Ciudad de México","2022-01-01"]
["DUR","MEX","Durango","2022-01-01"]
["GUA","MEX","Guanajuato","2022-01-01"]
["GRO","MEX","Guerrero","2022-01-01"]
["HID","MEX","Hidalgo","2022-01-01"]
["JAL","MEX","Jalisco","2022-01-01"]
["MEX","MEX","Estado de México","2022-01-01"]
["MIC","MEX","Michoacán","2022-01-01"]
["MOR","MEX","Morelos","2022-01-01"]
["NAY","MEX","Nayarit","2022-01-01"]
["NLE","MEX","Nuevo León","2022-01-01"]
["OAX","MEX","Oaxaca","2022-01-01"]
["PUE","MEX","Puebla","2022-01-01"]
["QUE","MEX","Querétaro","2022-01-01"]
["ROO","MEX","Quintana Roo","2022-01-01"]
["SLP","MEX","San Luis Potosí","2022-01-01"]
["SIN","MEX","Sinaloa","2022-01-01"]
["SON","MEX","Sonora","2022-01-01"]
["TAB","MEX","Tabasco","2022-01-01"]
["TAM","MEX","Tamaulipas","2022-01-01"]
["TLA","MEX","Tlaxcala","2022-01-01"]
["VER","MEX","Veracruz","2022-01-01"]
["YUC","MEX","Yucatán","2022-01-01"]
["ZAC","MEX","Zacatecas","2022-01-01"]
["AL","USA","Alabama","2022-01-01"]
["AK","USA","Alaska","2022-01-01"]
["AZ","USA","Arizona","2022-01-01"]
["AR","USA","Arkansas","2022-01-01"]
["CA","USA","California","2022-01-01"]
["NC","USA","Carolina del Norte","2022-01-01"]
["SC","USA","Carolina del Sur","2022-01-01"]
["CO","USA","Colorado","2022-01-01"]
["CT","USA","Connecticut","2022-01-01"]
["ND","USA","Dakota del Norte","2022-01-01"]
["SD","USA","Dakota del Sur","2022-01-01"]
["DE","USA","Delaware","2022-01-01"]
["FL","USA","Florida","2022-01-01"]
["GA","USA","Georgia","2022-01-01"]
["HI","USA","Hawái","2022-01-01"]
["ID","USA","Idaho","2022-01-01"]
["IL","USA","Illinois","2022-01-01"]
["IN","USA","Indiana","2022-01-01"]
["IA","USA","Iowa","2022-01-01"]
["KS","USA","Kansas","2022-01-01"]
["KY","USA","Kentucky","2022-01-01"]
["LA","USA","Luisiana","2022-01-01"]
["ME","USA","Maine","2022-01-01"]
["MD","USA","Maryland","2022-01-01"]
["MA","USA","Massachusetts","2022-01-01"]
["MI","USA","Míchigan","2022-01-01"]
["MN","USA","Minnesota","2022-01-01"]
["MS","USA","Misisipi","2022-01-01"]
["MO","USA","Misuri","2022-01-01"]
["MT","USA","Montana","2022-01-01"]
["NE","USA","Nebraska","2022-01-01"]
["NV","USA","Nevada","2022-01-01"]
["NJ","USA","Nueva Jersey","2022-01-01"]
["NY","USA","Nueva York","2022-01-01"]
["NH","USA","Nuevo Hampshire","2022-01-01"]
["NM","USA","Nuevo México","2022-01-01"]
["OH","USA","Ohio","2022-01-01"]
["OK","USA","Oklahoma","2022-01-01"]
["OR","USA","Oregón","2022-01-01"]
["PA","USA","Pensilvania","2022-01-01"]
["RI","USA","Rhode Island","2022-01-01"]
["TN","USA","Tennessee","2022-01-01"]
["TX","USA","Texas","2022-01-01"]
["UT","USA","Utah","2022-01-01"]
["VT","USA","Vermont","2022-01-01"]
["VA","USA","Virginia","2022-01-01"]
["WV","USA","Virginia Occidental","2022-01-01"]
["WA","USA","Washington","2022-01-01"]
["WI","USA","Wisconsin","2022-01-01"]
["WY","USA","Wyoming","2022-01-01"]
["ON","CAN","Ontario ","2022-01-01"]
["QC","CAN"," Quebec ","2022-01-01"]
["NS","CAN"," Nueva Escocia","2022-01-01"]
["NB","CAN","Nuevo Brunswick ","2022-01-01"]
["MB","CAN"," Manitoba","2022-01-01"]
["BC","CAN"," Columbia Británica","2022-01-01"]
["PE","CAN"," Isla del Príncipe Eduardo","2022-01-01"]
["SK","CAN"," Saskatchewan","2022-01-01"]
["AB","CAN"," Alberta","2022-01-01"]
["NL","CAN"," Terranova y Labrador","2022-01-01"]
["NT","CAN"," Territorios del Noroeste","2022-01-01"]
["YT","CAN"," Yukón","2022-01-01"]
["UN","CAN"," Nunavut","2022-01-01"]